Cogmind - Beta 16.1 @@@ ROGUE MODE // 2026.04.03 @ 23:29:29 Player: GiggleBox Result: Fortifying 0b10! Performance ------------- Evolutions (9) 4500 Regions Visited (32) 6400 Robots Destroyed (384) 1920 Value Destroyed (21065) 21065 Prototype IDs (67) 1340 Alien Tech Used (3) 600 Bonus (20608) 20608 TOTAL SCORE: 56433 Bonus ------- High Alert Combat Kills 1178 Follower Combat Kills 2633 Met Data Miner 300 Built Enhanced Grunts 300 A7 Reached Mainframe 300 Met R17 at Cetus 500 Found Hidden Lab 3000 Met R17 at Research 2000 Destroyed MAIN.C Guards 500 Met MAIN.C 5000 Destroyed MAIN.C Shell 5000 Win 3000 Friendly Fire -3103 Cogmind --------- Core Integrity 394/1600 Matter 300/300 Energy 758/764 System Corruption 0% Temperature Cool (0) Movement Treading (24) Location By MAIN.C's Side Parts ------- > --- POWER (2) -------- Particle-Chain Reactor > --- PROPULSION (6) --- Treaded QT Exoskeleton > --- UTILITY (12) ----- Armored Scrap Engine 2N-1CE's Frost Array High-capacity Storage Unit Experimental Optical Array Experimental Targeting Computer Experimental Core Analyzer Experimental Core Analyzer Improved Weapon Cycler Centrium Medium Armor Plating Graphene Brace (fused) Experimental System Purifier > --- WEAPON (6) ------- Advanced KE Penetrator Graviton Cannon Hvy. KE Driver Construct/C > --- INVENTORY (20) --- Angular Momentum Engine Particle Reactor Improved Quantum Reactor Impulse Thruster Array Improved Cooling System Improved Coolant Injector Experimental Energy Well (600) Matter Compressor (250) Experimental Matter Compressor (500) Experimental Cloaking Device Centrium Medium Armor Plating Long-range Tractor Beam Transdimensional Reconstructor Improved Matter Neutralizer Enhanced Nova Cannon Nanosword Peak State ------------ > --- POWER ------------ Particle-Chain Reactor > --- PROPULSION ------- Treaded QT Exoskeleton > --- UTILITY ---------- Armored Scrap Engine 2N-1CE's Frost Array High-capacity Storage Unit Experimental Optical Array Experimental Targeting Computer Experimental Core Analyzer Advanced Kinecellerator Improved Weapon Cycler Centrium Medium Armor Plating Graphene Brace Experimental System Purifier > --- WEAPON ----------- Improved Matter Neutralizer Advanced KE Penetrator Graviton Cannon Hvy. KE Driver Construct/C > --- INVENTORY -------- Angular Momentum Engine Particle Reactor Improved Quantum Reactor Impulse Thruster Array Improved Cooling System Improved Coolant Injector Experimental Energy Well Matter Compressor Experimental Matter Compressor Experimental Cloaking Device Centrium Medium Armor Plating Long-range Tractor Beam Transdimensional Reconstructor Enhanced Nova Cannon Nanosword [Rating: 228] Favorites ----------- Power Constructs Engine Improved Ion Engine Power Core Micro Nuclear Core Reactor Constructs Propulsion Constructs Treads Constructs Leg Aluminum Leg Wheel Compact Wheel Utility High-capacity Storage Unit Device Armored Scrap Engine Storage High-capacity Storage Unit Processor Core Analyzer Hackware Deep Network Scanner Protection Light Armor Plating Weapon Constructs Energy Gun Medium Laser Energy Cannon Improved Matter Neutralizer Ballistic Gun Improved Assault Rifle Ballistic Cannon Constructs Launcher Fusion Bomb Launcher Special Weapon CPS Tube Impact Weapon Power Maul Slashing Weapon Nanosword Build | -11 -10 -10 -9 -9 -9 -7 -7 -7 -7 -6 -6 -6 -6 -6 -6 -5 -5 -5 -5 -4 -4 -4 -4 -4 -4 -3 -3 -3 -2 -2 -1 -1 ------- Run | Yrd Mat Min Mat Sto Rec Fac Low Low Dat Pro Fac Was Fac Low Low Fac Upp Upp War Pro Fac Ext Cet Arc Hub Res Arm Lab Res Tes Acc Com Slots Evolved 18 | . . . 2 . . 4 . . . . 2 . . . . 2 . . . . 2 . . . . 2 . . 2 . 2 . Power 1 | . . . . . . 1 . . . . . . . . . . . . . . . . . . . . . . . . . . Propulsion 4 | . . . 1 . . 1 . . . . . . . . . 1 . . . . . . . . . . . . . . 1 . Utility 9 | . . . . . . 2 . . . . 1 . . . . 1 . . . . 1 . . . . 1 . . 2 . 1 . Weapon 4 | . . . 1 . . . . . . . 1 . . . . . . . . . 1 . . . . 1 . . . . . . Parts Attached 116 | 3 3 4 15 10 4 1 1 2 . 2 3 2 2 1 1 5 . . . . 4 8 5 1 . 1 4 3 5 6 . 20 Power 3 | . . 1 . 1 . . . . . 1 . . . . . . . . . . . . . . . . . . . . . . Engine 2 | . . 1 . 1 . . . . . . . . . . . . . . . . . . . . . . . . . . . . Core 1 | . . . . . . . . . . 1 . . . . . . . . . . . . . . . . . . . . . . Reactor . | . . . . . . . . . . . . . . . . . . . . . . . . . . . . . . . . . Propulsion 11 | 2 . 1 4 4 . . . . . . . . . . . . . . . . . . . . . . . . . . . . Treads 10 | 2 . 1 3 4 . . . . . . . . . . . . . . . . . . . . . . . . . . . . Leg . | . . . . . . . . . . . . . . . . . . . . . . . . . . . . . . . . . Wheel 1 | . . . 1 . . . . . . . . . . . . . . . . . . . . . . . . . . . . . Hover . | . . . . . . . . . . . . . . . . . . . . . . . . . . . . . . . . . Flight . | . . . . . . . . . . . . . . . . . . . . . . . . . . . . . . . . . Utility 70 | 1 1 2 3 2 2 1 1 2 . . 2 . 2 1 1 5 . . . . 4 5 5 . . 1 4 1 5 4 . 15 Device 39 | 1 . 1 . . 1 1 . 2 . . 1 . 1 1 1 2 . . . . 2 5 2 . . 1 4 . 4 2 . 7 Storage 4 | . 1 . 1 . . . . . . . . . . . . . . . . . . . . . . . . . . . . 2 Processor 10 | . . . . . . . 1 . . . 1 . . . . 2 . . . . 1 . 1 . . . . . . 2 . 2 Hackware 2 | . . . . . . . . . . . . . . . . 1 . . . . . . . . . . . . 1 . . . Protection 15 | . . 1 2 2 1 . . . . . . . 1 . . . . . . . 1 . 2 . . . . 1 . . . 4 Artifact . | . . . . . . . . . . . . . . . . . . . . . . . . . . . . . . . . . Weapon 32 | . 2 . 8 3 2 . . . . 1 1 2 . . . . . . . . . 3 . 1 . . . 2 . 2 . 5 Energy Gun 8 | . 1 . 2 1 1 . . . . . . . . . . . . . . . . 1 . . . . . 1 . . . 1 Energy Cannon 2 | . . . . . . . . . . . . . . . . . . . . . . . . . . . . 1 . . . 1 Ballistic Gun 9 | . . . 5 1 1 . . . . . . . . . . . . . . . . . . 1 . . . . . . . 1 Ballistic Cannon 3 | . . . . . . . . . . . . . . . . . . . . . . . . . . . . . . 1 . 2 Launcher 2 | . . . . . . . . . . 1 . 1 . . . . . . . . . . . . . . . . . . . . Special Weapon 3 | . . . . 1 . . . . . . . 1 . . . . . . . . . 1 . . . . . . . . . . Impact Weapon 4 | . 1 . 1 . . . . . . . 1 . . . . . . . . . . 1 . . . . . . . . . . Slashing Weapon 1 | . . . . . . . . . . . . . . . . . . . . . . . . . . . . . . 1 . . Piercing Weapon . | . . . . . . . . . . . . . . . . . . . . . . . . . . . . . . . . . Special Melee Weapon . | . . . . . . . . . . . . . . . . . . . . . . . . . . . . . . . . . Unidentified Prototypes 32 | . . 1 1 1 1 . 1 . . . . 1 . 1 . . . . . . . . 4 . . . . 5 1 2 . 13 Parts Lost 29 | . . 6 1 1 . . . . . 1 . . 2 . . . 1 . . . . 2 . . . . 4 . 2 1 . 8 Power 2 | . . 1 . . . . . . . 1 . . . . . . . . . . . . . . . . . . . . . . Propulsion 4 | . . 1 1 1 . . . . . . . . 1 . . . . . . . . . . . . . . . . . . . Utility 16 | . . 2 . . . . . . . . . . 1 . . . 1 . . . . . . . . . 3 . 1 1 . 7 Weapon 7 | . . 2 . . . . . . . . . . . . . . . . . . . 2 . . . . 1 . 1 . . 1 Highest Loss Streak 6 | . . 3 1 1 . . . . . 1 . . 1 . . . 1 . . . . 2 . . . . 2 . 1 1 . 6 To Critical Strikes . | . . . . . . . . . . . . . . . . . . . . . . . . . . . . . . . . . Average Backups 16 | 6 11 14 14 19 10 13 17 18 18 17 17 17 18 17 17 18 19 19 17 17 19 18 18 19 19 18 17 17 18 18 16 15 Power . | 1 1 1 . . . . . . . . . . 1 1 . . . . . . . . . . . . . 1 1 1 1 2 Propulsion 2 | 4 5 5 5 4 1 4 4 5 5 4 4 3 3 3 1 1 2 1 1 1 2 1 2 1 1 . 1 1 1 1 1 1 Utility 8 | . 1 2 5 6 3 5 9 10 10 10 9 10 9 8 10 11 10 10 10 10 10 13 14 17 16 15 13 13 13 12 11 8 Weapon 2 | 1 3 4 3 8 3 1 2 2 2 2 2 2 3 3 3 2 3 3 2 2 2 . . . . 1 1 . 1 2 1 2 Tool/Special . | . . . . . . . . . . . . . . . . . . . . . . . . . . . . . . . . . Unused Backups 138 | 4 . 2 6 4 11 9 3 2 . 1 . 2 7 9 7 5 2 3 . 1 6 10 6 . 2 5 11 1 1 3 1 14 Power 9 | 1 . 1 1 . . . . . . . . . . 2 . . . . . . . 1 . . . . . . . . . 3 Propulsion 55 | . . . 3 3 4 2 2 1 . 1 . 2 . 1 5 3 1 2 . . 4 4 5 . 1 3 5 1 . . 1 1 Utility 17 | 1 . . . . 3 1 . . . . . . 2 1 . 1 . . . 1 . . . . 1 . 1 . 1 1 . 3 Weapon 54 | 2 . 1 2 1 4 6 1 1 . . . . 5 5 2 1 1 1 . . 1 5 1 . . 2 5 . . 2 . 5 Tool/Special 3 | . . . . . . . . . . . . . . . . . . . . . 1 . . . . . . . . . . 2 Average Slot Usage (%) 61 | . 100 97 93 100 65 46 49 50 50 56 55 53 50 50 50 53 51 50 53 53 54 54 55 55 52 53 53 52 57 57 56 58 Engine 5 | . 14 14 11 11 10 7 7 4 . . . 5 6 . 5 2 . . . . . 2 . . . . . . . . . . Core 1 | . . . . . . . . 2 7 11 6 . . 5 . 2 5 5 5 5 5 . . . . . . . . . . . Reactor 1 | . . . . . . . . . . . . . . . . . . . . . . 2 4 5 5 4 4 4 4 4 3 3 Treads 8 | . 28 28 28 33 18 4 1 1 7 7 6 6 6 1 2 . . . 5 5 3 2 . . . . . . . . 1 3 Device 12 | . 14 8 . . 7 14 14 14 14 14 17 12 12 16 18 11 10 11 11 11 14 15 11 10 15 15 15 10 14 15 18 20 Storage 6 | . 14 14 11 11 3 7 7 7 7 7 6 6 6 6 6 5 5 5 5 5 5 5 5 5 5 4 4 4 4 4 3 3 Processor 7 | . . . . . . . 6 7 7 7 6 12 9 6 6 13 16 16 16 16 15 15 15 15 15 13 13 13 12 12 11 10 Protection 2 | . . 4 7 11 3 . . . . . . . 2 1 . . . . . . . . 3 5 . 1 1 4 5 8 7 4 Energy Gun 1 | . 13 13 12 . 3 . . . . . . . . . . . . . . . . . . . . . . . . . . . Energy Cannon 1 | . . . . . . 2 . 5 7 6 3 2 . 4 4 . 3 . . . . 1 . . . . 1 4 4 3 . . Ballistic Gun 4 | . 14 13 15 32 14 . . . . . . . . . . . . . . . . . . . . . . . . . . . Ballistic Cannon 2 | . . . . . 1 4 6 1 . . 2 3 5 1 1 4 1 5 5 5 5 3 5 5 5 4 2 . . 1 3 5 Impact Weapon 1 | . . . 4 . . . . . . . 5 2 . . . 3 1 . 3 . 4 3 5 5 2 3 4 4 3 . . . Peak Build Rating 228 | 7 9 15 19 23 33 55 65 69 68 77 83 92 82 87 86 104 107 104 96 101 117 129 136 143 141 148 164 178 178 188 200 228 Average Rating 82 | 6 7 8 15 19 27 48 62 67 68 72 82 78 77 82 78 97 100 95 94 97 107 122 129 136 138 145 148 149 173 175 194 205 On Entrance 89 | 6 7 8 6 19 20 33 52 65 68 68 75 78 75 80 83 74 104 97 92 92 94 117 123 136 143 133 147 152 159 166 172 199 Avg Prop Armor Cover (%) 14 | . . . 14 . 13 . . . . . . . . . . . . . . . . . . . . . . . . . . . Naked Turns . | . . . . . . . . . . . . . . . . . . . . . . . . . . . . . . . . . Heaviest Build 148 | 13 28 30 57 59 59 68 67 74 74 87 86 82 91 91 86 83 91 102 87 96 94 95 104 108 103 114 126 129 128 132 134 148 Greatest Support 219 | 40 40 40 60 60 63 66 100 133 133 133 133 164 164 55 107 107 107 107 107 107 132 156 140 115 115 115 164 146 146 219 152 174 Greatest Overweight (x) 2 | . . . 2 . . 1 . . . . . . 1 1 1 . . . . . . 1 1 . . 1 1 . . . . . Average Overweight (x) . | . . . . . . . . . . . . . . 1 . . . . . . . . . . . . . . . . . . Largest Inventory Capacity 20 | 8 15 15 20 20 20 20 20 20 20 20 20 20 20 20 20 20 20 20 20 20 20 20 20 20 20 20 20 20 20 20 20 20 Average Capacity 18 | 8 14 15 16 20 10 20 20 20 20 20 20 20 20 20 20 20 20 20 20 20 20 20 20 20 20 20 20 20 20 20 20 20 Most Carried 20 | 7 14 15 18 20 20 20 20 20 19 20 20 20 20 20 20 20 20 20 18 20 20 20 20 20 20 20 20 20 20 20 19 20 Average Carried 16 | 6 11 14 14 19 10 13 17 19 19 19 19 19 18 17 17 18 19 19 17 17 19 18 18 19 19 18 18 17 19 18 17 16 Final Capacity 20 | 8 15 15 20 20 5 20 20 20 20 20 20 20 20 20 20 20 20 20 20 20 20 20 20 20 20 20 20 20 20 20 20 20 Final Carried 20 | 7 14 14 18 20 5 20 20 19 19 20 20 19 20 16 17 19 20 18 18 20 20 20 19 20 20 19 18 20 18 18 18 17 Scrap Engine Consumption 365 | . . . . . 38 34 11 10 . 5 5 19 21 10 19 18 7 5 . . 15 28 15 2 8 10 32 2 17 6 . 28 Constructs Created 3 | . . . . . 3 . . . . . . . . . . . . . . . . . . . . . . . . . . . Constructs Modified 163 | . . . . . 13 14 5 5 . 2 1 9 12 6 10 8 3 2 . . 4 16 9 1 3 3 17 . 5 2 2 11 Class Distribution -------------------- 63% | Construct 9% | Commander-Construct 9% | Mutant 4% | Commander-Tank 3% | Scavenger-Tank Dominant Class ---------------- Mutant | -10/Materials Mutant | -10/Mines Mutant | -9/Materials Scavenger-Tank | -9/Storage Commander-Construct | -9/Recycling Construct | -7/Factory Construct | -7/Lower Caves Construct | -7/Lower Caves Construct | -7/Data Miner Construct | -6/Proximity Caves Construct | -6/Factory Construct | -6/Waste Construct | -6/Factory Construct | -6/Lower Caves Construct | -6/Lower Caves Construct | -5/Factory Construct | -5/Upper Caves Construct | -5/Upper Caves Construct | -5/Warlord Construct | -4/Proximity Caves Construct | -4/Factory Construct | -4/Extension Commander-Construct | -4/Cetus Commander-Construct | -4/Archives Commander-Construct | -4/Hub_04(d) Construct | -3/Research Construct | -3/Armory Construct | -3/Lab Hacker-Construct | -2/Research Construct | -2/Testing Construct | -1/Access Executioner | -1/Command Resources | -11 -10 -10 -9 -9 -9 -7 -7 -7 -7 -6 -6 -6 -6 -6 -6 -5 -5 -5 -5 -4 -4 -4 -4 -4 -4 -3 -3 -3 -2 -2 -1 -1 ----------- Run | Yrd Mat Min Mat Sto Rec Fac Low Low Dat Pro Fac Was Fac Low Low Fac Upp Upp War Pro Fac Ext Cet Arc Hub Res Arm Lab Res Tes Acc Com Matter Collected 11520 | 259 296 146 304 576 81 376 118 57 . 236 23 63 332 92 441 395 544 180 . 177 372 1474 337 227 360 329 1369 . 548 . 125 1683 Remotely 1135 | . . . . . . . . . . . . . . . . . . . . . . 455 . . . . 312 . 191 . . 177 Salvage Created 23570 | 139 308 302 720 1044 863 746 184 243 . 925 134 1332 646 166 670 621 536 217 . 158 908 2539 538 295 931 389 2803 . 1352 21 140 3700 Parts 1010 | 7 19 21 41 63 33 38 4 8 . 39 4 25 26 1 29 26 21 10 . 8 37 77 27 6 39 19 166 . 91 5 12 108 Haulers Intercepted 18 | . . . 1 2 . 2 . . . . 1 . 3 . . . . . . . 1 4 . . 3 1 . . . . . . Recyclers Shooed 11 | 1 . . 3 3 3 . . . . . . . . . . . . . . . 1 . . . . . . . . . . . Parts Field Recycled . | . . . . . . . . . . . . . . . . . . . . . . . . . . . . . . . . . Retrieved Matter . | . . . . . . . . . . . . . . . . . . . . . . . . . . . . . . . . . Parts Self-Destructed 79 | . . . . . . . . 6 . 30 . . . . 9 . 23 6 . 5 . . . . . . . . . . . . Prevented 9 | . . . . . . . . 1 . . . . . . 8 . . . . . . . . . . . . . . . . . Parts Restored . | . . . . . . . . . . . . . . . . . . . . . . . . . . . . . . . . . Kills | -11 -10 -10 -9 -9 -9 -7 -7 -7 -7 -6 -6 -6 -6 -6 -6 -5 -5 -5 -5 -4 -4 -4 -4 -4 -4 -3 -3 -3 -2 -2 -1 -1 ------- Run | Yrd Mat Min Mat Sto Rec Fac Low Low Dat Pro Fac Was Fac Low Low Fac Upp Upp War Pro Fac Ext Cet Arc Hub Res Arm Lab Res Tes Acc Com Combat Hostiles Destroyed 279 | . 8 10 9 19 3 15 . 6 . 24 1 6 4 3 12 6 10 4 . 10 6 14 6 3 5 4 43 . 17 . 2 29 Melee 1 | . . . . . . . . . . . 1 . . . . . . . . . . . . . . . . . . . . . Guns 52 | . 8 10 9 19 3 . . . . . . . . . . . . . . . . . . . . . . . . . . 3 Cannons 181 | . . . . . . 14 . 4 . 9 . 6 4 2 5 5 8 2 . 3 6 13 6 3 5 4 39 . 16 . 2 25 AOE 32 | . . . . . . . . 1 . 14 . . . 1 4 . 2 2 . 7 . . . . . . . . 1 . . . Classes Destroyed 27 | 2 3 . 3 2 3 3 2 . . 2 . 1 . . 1 . . . . . . 1 . . . . 3 . . . . 1 Worker 10 | . . . . . . 4 . . . . . . 1 . . 3 . . . . . 2 . . . . . . . . . . Builder 11 | . . . . 1 . 1 . . . . . . 1 . . . . . . . . 3 . . 2 1 . . 1 1 . . Tunneler 5 | 2 . 1 . . . . . . . . . . . . . . . . . . . 2 . . . . . . . . . . Hauler 18 | . . . 1 2 . 2 . . . . 1 . 3 . . . . . . . 1 4 . . 3 1 . . . . . . Recycler 23 | 1 . . 3 1 5 . . . . . . . . . . 1 . . . . 3 6 . . 2 . . . . . . 1 Mechanic 1 | . . . . . . . . . . 1 . . . . . . . . . . . . . . . . . . . . . . Operator 11 | . . . 1 1 . . . . . . 1 . 1 . . 1 . . . . . 1 . . . . 1 . 2 . . 2 Drone 4 | . . . . . . 1 . . . . . . . . . . . . . 2 . . . . . . . . . . . 1 Watcher 13 | . 2 . . 1 . 1 . . . . . . 1 . . 3 . . . . . 2 1 . . . 1 . . . . 1 Swarmer 61 | . 3 6 1 4 1 4 . 1 . 9 . 1 . . 4 . 1 . . 6 . . . . . 1 15 . 4 . . . Saboteur 2 | . . . . . . . . . . . . . . . . . . . . . . . . . . . 2 . . . . . Grunt 74 | . 5 4 4 7 5 3 . 4 . 6 1 . 3 2 2 . 4 3 . . . 8 . . 1 . 8 . . . . 4 Brawler 10 | . . . . 1 . . . . . 6 . . . 1 2 . . . . . . . . . . . . . . . . . Duelist 5 | . . . . . . . . . . 1 . . . . 1 . . . . . . . . . . . 2 . . . . 1 Protector 1 | . . . . . 1 . . . . . . . . . . . . . . . . . . . . . . . . . . . Researcher 1 | . . . . . . . 1 . . . . . . . . . . . . . . . . . . . . . . . . . Sentry 40 | . . . 4 7 1 2 . 1 . 1 . . 1 . 2 1 1 1 . . 2 3 . 3 . 1 3 . 5 . . 1 Demolisher 1 | . . . . . . . . . . . . . . . . . . . . . . . . . . . 1 . . . . . Specialist 3 | . . . . . . . . . . . . . . . . . . . . . . . . . . . 3 . . . . . Hunter 8 | . . . . . 1 1 . . . . . . . . . 1 . . . . . 1 . . . . 2 . 2 . . . Programmer 43 | . . . . . . 5 . . . 1 . . . . . 4 4 . . 2 4 . . . 4 2 7 . 6 . 2 2 Behemoth 2 | . . . . . . . . . . . . . . . . . . . . . . 2 . . . . . . . . . . Compactor 5 | . . . . . . . . . . . . 5 . . . . . . . . . . . . . . . . . . . . Cetus Guard 6 | . . . . . . . . . . . . . . . . . . . . . . . 6 . . . . . . . . . M Guard 1 | . . . . . . . . . . . . . . . . . . . . . . . . . . . . . . . . 1 Enhanced Grunt 1 | . . . . . . . . . . . . . . . . . . . . . . . . . 1 . . . . . . . Enhanced Q-Series 17 | . . . . . . . . . . . . . . . . . . . . . . . . . . . . . . . . 17 Combat Programmer 2 | . . . . . . . . . . . . . . . . . . . . . . . . . . . . . . . . 2 Scrapper 2 | . . . . . 2 . . . . . . . . . . . . . . . . . . . . . . . . . . . Decomposer 1 | . . . . . . . 1 . . . . . . . . . . . . . . . . . . . . . . . . . Samaritan 4 | . . . . . . . 2 . . 1 . . . . 1 . . . . . . . . . . . . . . . . . Wasp 1 | . . . . . . . . . . . . . 1 . . . . . . . . . . . . . . . . . . . Savage 1 | . . . . . . . . . . . . . . . 1 . . . . . . . . . . . . . . . . . Mutant 1 | . . . . . . . . . . . . . . . 1 . . . . . . . . . . . . . . . . . Best Kill Streak 13 | 1 3 5 2 6 2 4 . 3 . 13 1 4 4 3 5 3 2 3 . 6 5 9 4 2 5 2 7 . 6 1 2 6 Combat Bots Only 13 | . 3 5 2 6 2 4 . 3 . 13 1 4 3 3 5 2 2 3 . 6 4 2 4 2 2 1 5 . 4 . 2 4 Max Kills in Single Turn 4 | 1 2 1 1 2 2 4 1 1 . 4 1 1 1 1 4 2 2 2 . 3 1 2 1 1 2 1 4 . 1 1 1 1 Gunslinging 1 | . 1 . . 1 . . . . . . . . . . . . . . . . . . . . . . . . . . . . Exploded 4 | . . . . . . . . 1 . 4 . . . 1 4 . 2 2 . 3 . . . . . . . . 1 . . . Melee 1 | . . . . . . . . . . . 1 . . . . . . . . . . . . . . . . . . . . . Uniques/NPCs Destroyed 2 | . . . . . . . . . . . . . . . . . . . . . . . 1 . . . . . . . . 1 A7 (-4/Cetus) MAIN.C Shell (-1/Command) Combat | -11 -10 -10 -9 -9 -9 -7 -7 -7 -7 -6 -6 -6 -6 -6 -6 -5 -5 -5 -5 -4 -4 -4 -4 -4 -4 -3 -3 -3 -2 -2 -1 -1 -------- Run | Yrd Mat Min Mat Sto Rec Fac Low Low Dat Pro Fac Was Fac Low Low Fac Upp Upp War Pro Fac Ext Cet Arc Hub Res Arm Lab Res Tes Acc Com Hostile Shots Fired 1770 | . 29 69 42 40 . 144 . 54 . 44 58 . 36 12 32 29 44 15 . 45 8 83 2 6 4 15 363 . 201 21 4 370 Missed 630 | . 11 17 14 16 . 44 . 25 . 9 18 . 12 5 10 9 17 6 . 15 7 27 1 1 1 2 116 . 109 12 2 124 Intercepted 9 | . . . . . . . . . . . . . . . . . . . . . . . . . . . . . . . . 9 Hits 1140 | . 18 52 28 24 . 100 . 29 . 35 40 . 24 7 22 20 27 9 . 30 1 56 1 5 3 13 247 . 92 9 2 246 Melee 9 | . . . . . . . . . . 2 . . . . . . . . . . . . . . . . 7 . . . . . Projectile 1131 | . 18 52 28 24 . 100 . 29 . 33 40 . 24 7 22 20 27 9 . 30 1 56 1 5 3 13 240 . 92 9 2 246 AOE 36 | . . . . . . . . . . . . . . . . . . . . . . . . . . . 3 . . . . 33 Critical Strikes 48 | . 1 . . 2 . . . . . 1 1 . 2 . 1 1 3 1 . 2 1 1 1 . 1 1 10 . 4 . 1 13 Actively Blocked 12 | . . . . . . . . . . . . . . . . . . . . . . . . . . . . . . . . 12 Part Disruptions 1 | . . . . . . . . . . . . . . . . . . . . . . . . . . . . . . . . 1 Damage Taken 28527 | . 237 632 363 349 37 1254 . 295 . 706 776 . 689 67 359 579 548 172 . 638 22 1601 64 140 62 357 5931 . 2008 197 45 10399 Core 3046 | . 25 118 61 67 12 190 . 15 . 61 94 . 92 28 36 87 62 . . 65 . 214 . . . 49 480 . 84 . . 1206 Absorbed by Shields 346 | . . . . . 5 . . . . . . . . . . . . . . . . 114 13 . . . . . . . . 214 Reduced by Siege Mode 169 | . . . . . . . . . . . . . . . . . . . . . . . . . . . . . . . . 169 Redirected to Shielding 41 | . . 39 2 . . . . . . . . . . . . . . . . . . . . . . . . . . . . . Ignored by Resistances 39 | . . . . . . . . . . . . . . . . . . . . . . . . . . . . . . . . 39 Regen/Repaired (Parts) 13017 | . . . 68 . 5 602 103 185 . 111 114 749 202 19 266 281 99 372 . . 443 1025 265 105 . 325 2540 248 1279 440 242 2929 Core Remaining (%) 70 | 100 . 42 . . 65 . . . . 62 . . . . 70 . . . . 78 . . . . 81 . . 84 . 94 . 24 Volleys Fired 1013 | 11 22 31 31 48 35 82 12 17 . 47 5 41 31 6 21 14 20 8 2 13 6 77 28 10 20 19 116 . 39 6 2 193 Largest 3 | 2 2 2 3 3 3 1 1 1 . 2 1 1 1 1 1 1 1 1 1 1 1 2 1 1 1 1 1 . 1 2 1 3 Hottest 403 | 70 70 70 153 69 94 87 59 78 . 117 48 48 148 148 291 308 308 274 274 274 403 403 113 113 150 150 243 . 66 124 88 259 Shots Fired 1366 | 22 43 62 79 144 64 81 12 17 . 50 5 41 31 6 21 14 19 8 2 13 6 78 28 10 20 19 113 . 39 7 2 310 Gun 452 | 22 43 62 79 144 63 . . . . . . . . . . . . . . . . . . . . . . . . . . 39 Cannon 894 | . . . . . 1 81 12 17 . 40 5 41 31 6 20 14 18 6 2 9 6 76 28 10 20 19 113 . 39 7 2 271 Launcher 18 | . . . . . . . . . . 10 . . . . 1 . 1 2 . 4 . . . . . . . . . . . . Special 2 | . . . . . . . . . . . . . . . . . . . . . . 2 . . . . . . . . . . Kinetic 840 | 11 22 31 43 144 45 42 12 . . . . . 25 6 2 14 18 6 2 9 . 50 28 10 20 19 88 . . 4 . 189 Thermal 461 | 11 21 31 36 . 19 39 . 17 . 40 . 29 6 . . . . . . . 6 26 . . . . 25 . 39 3 2 111 Explosive 18 | . . . . . . . . . . 10 . . . . 1 . 1 2 . 4 . . . . . . . . . . . . Electromagnetic 45 | . . . . . . . . . . . 5 12 . . 18 . . . . . . . . . . . . . . . . 10 Robot Hit Streak 42 | 9 20 20 14 23 15 9 16 12 . 10 5 16 6 3 4 4 5 2 . 3 9 11 8 4 3 5 8 . 23 1 3 42 Robot Miss Streak 8 | 2 3 3 2 3 3 3 3 8 . 3 . 3 2 1 3 1 2 3 . 3 . 3 3 2 2 3 4 . 2 1 . 2 Penetration Max 3 | . . . . . . . . . . . . . . . . 1 . . . . . 1 . . 1 . 3 . . . . 1 Secondary Targets 7 | . 2 3 . 2 . . . . . . . . . . . . . . . . . . . . . . . . . . . . Max Gunslinging Chain 1 | . 1 1 . 1 . . . . . . . . . . . . . . . . . . . . . . . . . . . . Shots Hit Robots 1042 | 16 29 43 59 113 44 45 10 10 . 42 6 37 22 4 12 18 13 3 . 6 11 61 19 7 11 12 60 . 31 1 2 295 Core Hits 478 | 4 17 17 20 39 23 21 10 5 . 53 1 20 10 4 12 7 9 4 . 9 6 24 12 3 9 4 28 . 23 1 2 81 Critical Kills 23 | . . . . . 1 . . . . . . . 2 . . . . . . . 3 4 5 . 1 . 7 . . . . . Critical Parts Destroyed 40 | . . . 1 . . 1 . . . . 1 . . . 1 5 . . . . . 15 1 1 . 1 7 . . . . 6 Critical Strikes 89 | . 1 2 2 . 5 1 . . . . 1 1 2 . 1 6 1 . . . 3 25 6 1 1 2 14 . . . . 14 Burn 8 | . 1 2 1 . 4 . . . . . . . . . . . . . . . . . . . . . . . . . . . Meltdown 1 | . . . . . . . . . . . . . . . . . . . . . . . . . . . 1 . . . . . Destroy 58 | . . . . . 1 . . . . . . . 2 . 1 . . . . . 2 20 6 1 1 2 13 . . . . 9 Blast 6 | . . . . . . . . . . . . . . . . 1 1 . . . . . . . . . . . . . . 4 Corrupt 2 | . . . . . . . . . . . . 1 . . . . . . . . . . . . . . . . . . . 1 Smash 14 | . . . 1 . . 1 . . . . 1 . . . . 5 . . . . 1 5 . . . . . . . . . . Melee Attacks 175 | . 5 . 7 5 . 6 . . . . 12 . . . . 21 1 . 2 . 10 14 . . 4 1 14 16 21 6 3 27 Impact 139 | . 5 . 7 5 . 6 . . . . 12 . . . . 21 1 . 2 . 10 14 . . 4 1 14 16 21 . . . Slashing 36 | . . . . . . . . . . . . . . . . . . . . . . . . . . . . . . 6 3 27 Piercing . | . . . . . . . . . . . . . . . . . . . . . . . . . . . . . . . . . Sneak Attacks 22 | . . . 1 . . 1 . . . . 1 . . . . 3 . . . . 4 10 . . . . . . . . . 2 Combat Hostiles 1 | . . . . . . . . . . . . . . . . . . . . . . 1 . . . . . . . . . . Follow-up Attacks . | . . . . . . . . . . . . . . . . . . . . . . . . . . . . . . . . . Damage Inflicted 83707 | 238 384 556 1037 1844 865 2812 372 497 . 3034 389 2114 1618 538 1530 1654 1462 724 . 1481 1041 8263 1944 655 2244 2225 11227 . 3782 352 619 28206 Guns 5671 | 233 373 554 869 1798 734 . . . . . . . . . . . . . . . . . . . . . . . . . . 1110 Cannons 67057 | . . . . . 17 2022 372 497 . 1334 131 2114 1610 280 1070 803 1316 296 . 508 640 7103 1944 655 2134 2225 11104 . 3782 352 619 24129 Explosions 4746 | . . . . . . 604 . . . 1700 . . . 258 460 177 146 428 . 973 . . . . . . . . . . . . Melee 5856 | . . . 168 . . 131 . . . . 248 . . . . 674 . . . . 401 1160 . . . . 107 . . . . 2967 Ramming 377 | 5 11 2 . 46 114 55 . . . . 10 . 8 . . . . . . . . . . . 110 . 16 . . . . . Kinetic 43260 | 119 184 285 423 1798 499 1377 372 . . . . . 1283 280 162 803 1316 296 . 508 . 4082 1944 655 2134 2225 8772 . . 352 . 13391 Thermal 28344 | 114 189 269 446 . 252 936 . 497 . 1334 . 2071 327 258 120 . . . . . 640 3021 . . . . 2332 . 3782 . 619 11137 Explosive 4077 | . . . . . . 313 . . . 1700 . . . . 340 177 146 428 . 973 . . . . . . . . . . . . Electromagnetic 1793 | . . . . . . . . . . . 131 43 . . 908 . . . . . . . . . . . . . . . . 711 Impact 2889 | . . . 168 . . 131 . . . . 248 . . . . 674 . . . . 401 1160 . . . . 107 . . . . . Slashing 2967 | . . . . . . . . . . . . . . . . . . . . . . . . . . . . . . . . 2967 Piercing . | . . . . . . . . . . . . . . . . . . . . . . . . . . . . . . . . . Highest Corruption 12 | . . . . . . 3 1 . . 4 . . . . . 3 3 3 3 1 . . . . . 2 8 8 3 4 1 12 Average Corruption 3 | . . . . . . 2 1 . . 4 . . . . . 1 3 3 3 1 . . . . . 1 4 3 1 3 1 7 Corruption Purged 31 | . . . . . . 3 1 . . . . . . . . . . . . . . . . . . 2 . 8 . . . 17 Corruption Blocked . | . . . . . . . . . . . . . . . . . . . . . . . . . . . . . . . . . Effects 117 | . . . . . . 11 . . . 3 . . . . . 6 14 6 . . . . . . . 2 32 5 3 3 . 32 Message Errors 26 | . . . . . . 5 . . . . . . . . . 2 3 . . . . . . . . 1 6 2 . 1 . 6 Matter Fused 29 | . . . . . . 2 . . . . . . . . . 3 4 2 . . . . . . . . 12 . 1 . . 5 Heat Flow Errors 9 | . . . . . . . . . . 1 . . . . . . 1 1 . . . . . . . . 3 . 2 . . 1 Energy Discharges 12 | . . . . . . . . . . . . . . . . 1 1 2 . . . . . . . . 4 . . 1 . 3 Parts Rejected 6 | . . . . . . 1 . . . . . . . . . . 1 . . . . . . . . . 3 . . . . 1 Parts Fused 6 | . . . . . . . . . . 1 . . . . . . 1 . . . . . . . . . . 1 . 1 . 2 Data Loss (minor) 8 | . . . . . . 2 . . . . . . . . . . 1 1 . . . . . . . 1 . . . . . 3 Data Loss (major) 3 | . . . . . . . . . . . . . . . . . 1 . . . . . . . . . 1 1 . . . . Misfires 2 | . . . . . . . . . . . . . . . . . . . . . . . . . . . . . . . . 2 Alerts 2 | . . . . . . . . . . 1 . . . . . . . . . . . . . . . . . 1 . . . . Weapon Failures 14 | . . . . . . 1 . . . . . . . . . . 1 . . . . . . . . . 3 . . . . 9 Overload Shots . | . . . . . . . . . . . . . . . . . . . . . . . . . . . . . . . . . Overflow Damage 11214 | . . . 13 . . 296 45 23 . 29 126 . 153 48 93 610 225 49 . 155 259 1577 48 . 473 498 3665 . 203 121 . 2505 Projectiles 8885 | . . . . . . 84 45 23 . . 54 . 153 5 68 117 225 15 . 130 132 874 48 . 428 498 3636 . 203 121 . 2026 Explosions 361 | . . . . . . 178 . . . 29 . . . 43 25 27 . 34 . 25 . . . . . . . . . . . . Melee 1968 | . . . 13 . . 34 . . . . 72 . . . . 466 . . . . 127 703 . . 45 . 29 . . . . 479 Knockbacks 116 | . . . . . 2 7 1 . . . 2 . 2 1 . 5 3 . . . 3 7 5 . 2 3 12 . . . . 61 Impact 15 | . . . . . 2 1 . . . . 2 . . . . 3 . . . . 3 3 . . 1 . . . . . . . Kinetic 95 | . . . . . . 5 1 . . . . . 2 1 . 2 3 . . . . 2 5 . 1 3 9 . . . . 61 Secondary 6 | . . . . . . 1 . . . . . . . . . . . . . . . 2 . . . . 3 . . . . . Self-Inflicted Damage 432 | . . . . . . 147 . . . 20 . . . . 38 188 . . . 39 . . . . . . . . . . . . Shots 7 | . . . . . . 2 . . . 1 . . . . 1 2 . . . 1 . . . . . . . . . . . . Rammed 25 | 2 2 1 . 5 10 4 . . . . . . 1 . . . . . . . . . . . . . . . . . . . Targets Rammed 32 | 2 2 1 . 5 11 5 . . . . 1 . 2 . . . . . . . . . . . 2 . 1 . . . . . Kicked 4 | . . . . . . 1 . . . . . . . . . . . . . . . . . . 2 . 1 . . . . . Crushed 3 | . . . . . 1 . . . . . 1 . 1 . . . . . . . . . . . . . . . . . . . Highest Temperature 451 | 54 63 18 191 25 240 160 12 172 . 169 17 3 397 249 182 372 451 194 178 376 200 309 26 36 125 180 356 . 331 . . 309 Average Temperature 86 | 20 21 9 66 10 94 37 4 50 . 61 11 1 103 131 66 153 151 100 102 162 117 126 18 13 40 66 95 . 126 . . 29 Received Heat Transfer 3889 | . 147 177 96 108 6 159 . 66 . 138 177 . 102 9 83 9 45 99 . 112 . 127 . 18 . . 521 . 532 36 . 1122 Effects 9 | . . . . . 1 . . . . . . . . . . . 5 . . 2 . 1 . . . . . . . . . . Energy Bleed 3 | . . . . . . . . . . . . . . . . . 2 . . . . 1 . . . . . . . . . . Interference 5 | . . . . . 1 . . . . . . . . . . . 2 . . 2 . . . . . . . . . . . . Matter Decay 1 | . . . . . . . . . . . . . . . . . 1 . . . . . . . . . . . . . . . Siege Activations 1 | . . . . . . . . . . . . . . . . . . . . . . . . . . . . . . . . 1 Total Turns 32 | . . . . . . . . . . . . . . . . . . . . . . . . . . . . . . . . 32 Longest Duration 32 | . . . . . . . . . . . . . . . . . . . . . . . . . . . . . . . . 32 Martial Activations . | . . . . . . . . . . . . . . . . . . . . . . . . . . . . . . . . . Shielding Activations . | . . . . . . . . . . . . . . . . . . . . . . . . . . . . . . . . . Robots Disrupted . | . . . . . . . . . . . . . . . . . . . . . . . . . . . . . . . . . Combat Hostiles . | . . . . . . . . . . . . . . . . . . . . . . . . . . . . . . . . . Robots Corrupted 27 | . . . . . . 2 . . . . 1 . . . 3 5 . . . . 2 9 . . 1 . 3 . . . . 1 Combat Hostiles 10 | . . . . . . 1 . . . . . . . . 3 1 . . . . . 1 . . . . 3 . . . . 1 Parts Fried 51 | . . . 1 . . 3 . 2 . . 2 . . . 9 6 . . . . 1 19 . . 2 . 3 . 1 . . 2 Impact Corruptions 50 | . . . 1 . . 2 . . . . 2 . . . . 11 . . . . 4 22 . . 2 . 6 . . . . . Robots Melted 2 | . . . . . . . . . . 1 . . . . . . . . . . . . . . . . 1 . . . . . Combat Hostiles 2 | . . . . . . . . . . 1 . . . . . . . . . . . . . . . . 1 . . . . . Parts Melted 19 | . . . 1 . . 3 . . . 3 . . . . . . . . . . . . . . . . 3 . 8 . . 1 Heat Transferred 15497 | 333 629 925 1110 . 910 873 . 518 . 1961 . 375 285 320 100 . . . . . 300 814 . . . . 555 . 2049 . 100 3340 Parts Sabotaged . | . . . . . . . . . . . . . . . . . . . . . . . . . . . . . . . . . Parts Stolen . | . . . . . . . . . . . . . . . . . . . . . . . . . . . . . . . . . Parts Stripped . | . . . . . . . . . . . . . . . . . . . . . . . . . . . . . . . . . Power Chain Reactions 2 | . . . . . . . . . . . . . . . 2 . . . . . . . . . . . . . . . . . Alert | -11 -10 -10 -9 -9 -9 -7 -7 -7 -7 -6 -6 -6 -6 -6 -6 -5 -5 -5 -5 -4 -4 -4 -4 -4 -4 -3 -3 -3 -2 -2 -1 -1 ------- Run | Yrd Mat Min Mat Sto Rec Fac Low Low Dat Pro Fac Was Fac Low Low Fac Upp Upp War Pro Fac Ext Cet Arc Hub Res Arm Lab Res Tes Acc Com Maximum Alert Level 4 | . . . . 1 . 1 . . . . 1 . 4 . . . . . . . 1 1 1 1 2 2 4 . 2 . . 1 Low Security (%) 71 | 100 100 100 100 38 100 80 . . . . 77 100 9 . . 100 . . . . 44 91 76 33 31 . . . 52 100 100 79 Level 1 17 | . . . . 61 . 19 . . . . 22 . 41 . . . . . . . 55 8 23 66 34 21 24 . 30 . . 20 Level 2 6 | . . . . . . . . . . . . . 8 . . . . . . . . . . . 33 78 34 . 16 . . . Level 3 1 | . . . . . . . . . . . . . 15 . . . . . . . . . . . . . 18 . . . . . Level 4 2 | . . . . . . . . . . . . . 24 . . . . . . . . . . . . . 22 . . . . . Level 5 . | . . . . . . . . . . . . . . . . . . . . . . . . . . . . . . . . . High Security . | . . . . . . . . . . . . . . . . . . . . . . . . . . . . . . . . . Max Security . | . . . . . . . . . . . . . . . . . . . . . . . . . . . . . . . . . Peak Influence 1324 | 5 79 110 94 340 100 299 . . . . 300 101 1324 . . 81 . . . . 301 257 231 241 549 600 1300 . 471 120 142 237 Initial 301 | . . . . 8 100 250 . . . . 158 101 . . . 77 . . . . 301 119 132 60 70 276 226 . . 91 43 90 Average 171 | . 15 24 36 191 10 105 . . . . 161 18 589 . . 35 . . . . 204 81 156 189 310 467 702 . 244 93 59 161 Influence Increases 13740 | 15 252 260 277 715 318 1089 5 255 . 550 302 24 1952 95 290 343 250 155 . 300 380 784 407 191 754 558 1664 . 883 111 149 412 Destroy 0b10 Robot/C 6480 | . 160 200 180 420 80 340 . 120 . 480 20 20 780 60 220 120 200 80 . 160 120 400 180 80 200 220 940 . 440 . 40 220 Destroy 0b10 Robot/NC 560 | 15 10 5 25 30 30 40 5 . . 5 10 . 65 10 . 40 . . . 10 20 100 10 . 45 10 10 . 20 5 . 40 Destroy Leader 1226 | . 34 40 52 126 . 126 . . . 50 2 . 170 10 10 46 20 . . 10 52 44 10 . 48 52 152 . 130 . 10 32 Allied During Kill 1592 | . . . . 30 43 13 . . . . . . 687 . . . . . . . . 102 168 80 238 134 51 . 46 . . . Successful Hack 275 | . 13 . 17 29 15 33 . . . . 7 . 11 . . 27 . . . . . . 9 . 40 . 18 . 28 28 . . Select Force Hacks 230 | . 30 . . . 150 . . . . . . . . . . . . . . . . . . . . . 50 . . . . . Disable Machine 690 | . . . . 45 . 150 . . . . 15 . 120 . . 45 . . . . 15 . . 15 60 15 75 . 60 60 . 15 Destroy Structure 817 | . 5 . 3 5 . 107 . . . . 8 4 104 . . 50 . . . . 8 48 30 16 48 52 128 . 159 18 9 15 Advance Influence 400 | . . . . . . 250 . . . . . . . . . . . . . . 150 . . . . . . . . . . . Partial Spotted 195 | . . . . . . . . . . . . . . . . 15 . . . . 15 . . . 30 45 . . . . 60 30 Lose Combat Pursuer 1275 | . . 15 . 30 . 30 . 135 . 15 240 . 15 15 60 . 30 75 . 120 . 90 . . 45 30 240 . . . 30 60 Influence Decreases 13528 | 15 252 260 257 477 576 873 221 255 . 298 264 314 792 818 603 400 265 207 . 60 375 792 493 141 428 653 808 1288 720 202 79 342 Entered New Map 3572 | . . . . 12 158 . 81 . . . 94 189 . 430 84 47 26 11 . . 89 126 105 91 131 251 206 1288 . 72 29 52 Time Decay 8066 | 15 252 240 247 455 361 538 140 255 . 238 160 125 372 368 519 339 229 196 . 60 286 479 368 50 190 342 502 . 340 120 50 230 Lost Part 230 | . . 20 10 10 . . . . . 10 . . 20 . . . 10 . . . . 20 . . . . 40 . 20 10 . 60 Lost Ally 722 | . . . . . 57 60 . . . 50 10 . 250 20 . . . . . . . 51 20 . 24 60 60 . 60 . . . Purge Threat 938 | . . . . . . 275 . . . . . . 150 . . 14 . . . . . 116 . . 83 . . . 300 . . . Squads Dispatched 59 | . 1 . . 1 . 8 . . . 1 . . 8 . 1 3 . . . . 2 2 . . 2 2 12 . 12 2 1 1 Investigation 7 | . 1 . . . . . . . . . . . . . . . . . . . . . . . . . 2 . 3 1 . . Extermination 25 | . . . . . . 5 . . . . . . 1 . . 3 . . . . 2 . . . 2 1 4 . 4 1 1 1 Reinforcement 13 | . . . . 1 . 3 . . . . . . 3 . . . . . . . . 2 . . . 1 1 . 2 . . . Assault 8 | . . . . . . . . . . 1 . . 1 . 1 . . . . . . . . . . . 5 . . . . . Garrison 6 | . . . . . . . . . . . . . 3 . . . . . . . . . . . . . . . 3 . . . Intercept . | . . . . . . . . . . . . . . . . . . . . . . . . . . . . . . . . . Searches Triggered . | . . . . . . . . . . . . . . . . . . . . . . . . . . . . . . . . . Data Miner Redirects 2 | . . . . . . . . . . . . . . . . . . . . . . . . . . . 2 . . . . . Construction Impeded 2 | . . . . . . 1 . . . . . . . . . . . . . . . 1 . . . . . . . . . . Haulers Reinforced 4 | . . . . . . 1 . . . . . . 2 . . . . . . . . . . . . 1 . . . . . . Active Scanning Responses . | . . . . . . . . . . . . . . . . . . . . . . . . . . . . . . . . . Cargo Convoy Interrupts . | . . . . . . . . . . . . . . . . . . . . . . . . . . . . . . . . . Stealth | -11 -10 -10 -9 -9 -9 -7 -7 -7 -7 -6 -6 -6 -6 -6 -6 -5 -5 -5 -5 -4 -4 -4 -4 -4 -4 -3 -3 -3 -2 -2 -1 -1 --------- Run | Yrd Mat Min Mat Sto Rec Fac Low Low Dat Pro Fac Was Fac Low Low Fac Upp Upp War Pro Fac Ext Cet Arc Hub Res Arm Lab Res Tes Acc Com Distress Signals 47 | . 1 . 1 3 1 3 . . . . 1 . 1 . . 1 . . . . 2 2 1 . 1 9 1 . 7 . . 12 Communications Jammed 12 | . . . . . . . . . . . 12 . . . . . . . . . . . . . . . . . . . . . Distress Signals 12 | . . . . . . . . . . . 12 . . . . . . . . . . . . . . . . . . . . . Times Spotted 592 | . 15 14 15 27 5 35 . 12 . 22 22 6 14 4 17 15 18 8 . 26 11 29 11 3 12 16 72 . 87 10 6 60 Peak Tracking Total 12 | . 3 3 4 6 1 4 . 4 . 9 11 3 3 3 5 3 5 5 . 8 4 4 5 1 4 8 11 . 12 6 4 8 Tactical Retreats 60 | . . 1 . 2 . 2 . 2 . 1 6 . 1 1 1 . 2 3 . 4 . 3 . . 1 1 11 . 14 . 1 3 ECM-based Alert Blocks 52 | . . . . . . . . . . . . . . . . . . . . . . . . . . . . . 52 . . . Traps | -11 -10 -10 -9 -9 -9 -7 -7 -7 -7 -6 -6 -6 -6 -6 -6 -5 -5 -5 -5 -4 -4 -4 -4 -4 -4 -3 -3 -3 -2 -2 -1 -1 ------- Run | Yrd Mat Min Mat Sto Rec Fac Low Low Dat Pro Fac Was Fac Low Low Fac Upp Upp War Pro Fac Ext Cet Arc Hub Res Arm Lab Res Tes Acc Com Traps Triggered 21 | . . . . . . 3 . . . . 2 . . . . . . . . . . 3 . . 1 1 3 . 3 1 . 4 Indirectly . | . . . . . . . . . . . . . . . . . . . . . . . . . . . . . . . . . Trap Hack Attempts . | . . . . . . . . . . . . . . . . . . . . . . . . . . . . . . . . . Triggered . | . . . . . . . . . . . . . . . . . . . . . . . . . . . . . . . . . Disarmed 6 | . . . . . . 6 . . . . . . . . . . . . . . . . . . . . . . . . . . Reprogrammed . | . . . . . . . . . . . . . . . . . . . . . . . . . . . . . . . . . Reused . | . . . . . . . . . . . . . . . . . . . . . . . . . . . . . . . . . Traps Extracted . | . . . . . . . . . . . . . . . . . . . . . . . . . . . . . . . . . Installed 1 | . . . . . . . . . . . . . . 1 . . . . . . . . . . . . . . . . . . Triggered . | . . . . . . . . . . . . . . . . . . . . . . . . . . . . . . . . . Machines | -11 -10 -10 -9 -9 -9 -7 -7 -7 -7 -6 -6 -6 -6 -6 -6 -5 -5 -5 -5 -4 -4 -4 -4 -4 -4 -3 -3 -3 -2 -2 -1 -1 ---------- Run | Yrd Mat Min Mat Sto Rec Fac Low Low Dat Pro Fac Was Fac Low Low Fac Upp Upp War Pro Fac Ext Cet Arc Hub Res Arm Lab Res Tes Acc Com Machines Disabled 55 | . . . . 3 . 10 . . . 2 1 . 8 1 1 3 . 1 . . 1 . . 1 4 1 5 2 4 5 . 2 Max in Single Turn 4 | . . . . 1 . 4 . . . 1 1 . . 1 1 3 . 1 . . 1 . . 1 2 1 1 1 1 1 . 1 Garrison Access 3 | . . . . 1 . . . . . . . . . . . 1 . . . . . . . . . 1 . . . . . . Energy Cycler 1 | . . . . . . . . . . . . . . . . . . . . . . . . . . . 1 . . . . . Machines Repaired . | . . . . . . . . . . . . . . . . . . . . . . . . . . . . . . . . . Machines Dismantled 1 | . . . . 1 . . . . . . . . . . . . . . . . . . . . . . . . . . . . Machines Sabotaged . | . . . . . . . . . . . . . . . . . . . . . . . . . . . . . . . . . Overloaded Fab Kills 3 | . . . . . . . . . . . . . . . . . . . . . . . . . . . 3 . . . . . Hacking | -11 -10 -10 -9 -9 -9 -7 -7 -7 -7 -6 -6 -6 -6 -6 -6 -5 -5 -5 -5 -4 -4 -4 -4 -4 -4 -3 -3 -3 -2 -2 -1 -1 --------- Run | Yrd Mat Min Mat Sto Rec Fac Low Low Dat Pro Fac Was Fac Low Low Fac Upp Upp War Pro Fac Ext Cet Arc Hub Res Arm Lab Res Tes Acc Com Machines Accessed 115 | . 6 1 4 12 12 13 1 1 4 . 3 . 4 . 2 9 . . . . 3 5 1 . 5 4 6 . 7 6 4 2 Terminals 73 | . 5 . 2 11 6 8 . . . . 1 . 4 . . 6 . . . . 2 5 1 . 5 2 5 . 4 4 . 2 Fabricators 9 | . . . . . . 2 . . . . 1 . . . . 1 . . . . . . . . . 1 1 . . 2 1 . Repair Stations 1 | . . . 1 . . . . . . . . . . . . . . . . . . . . . . . . . . . . . Recycling Units 9 | . 1 . 1 . 5 . . . . . . . . . . 1 . . . . . . . . . . . . . . 1 . Scanalyzers 4 | . . . . . . 1 . . . . . . . . . . . . . . 1 . . . . . . . 2 . . . Garrison Access 9 | . . . . 1 . 2 . . . . 1 . . . . 1 . . . . . . . . . 1 . . 1 . 2 . Total Hacks 264 | . 20 1 9 27 26 29 1 1 30 . 4 . 13 . 2 16 . . . . 7 14 1 . 13 7 10 . 14 11 4 4 Successful 146 | . 12 1 6 15 17 12 1 1 30 . 2 . 5 . 2 11 . . . . 2 5 1 . 6 2 3 . 7 4 . 1 Failed 118 | . 8 . 3 12 9 17 . . . . 2 . 8 . . 5 . . . . 5 9 . . 7 5 7 . 7 7 4 3 Catastrophic 20 | . . . . . 1 3 . . . . 2 . 1 . . 1 . . . . . 4 . . 2 . 2 . . 1 2 1 Database Lockouts . | . . . . . . . . . . . . . . . . . . . . . . . . . . . . . . . . . Manual 112 | . 16 . 4 13 17 13 . . . 1 2 . 9 . . 8 . . . . 3 9 1 . 6 2 1 . 3 3 . 1 Terminals 182 | . 19 . 4 25 18 21 . . . . 1 . 13 . . 13 . . . . 4 14 1 . 13 4 9 . 10 9 . 4 Fabricators 13 | . . . . . . 4 . . . . 2 . . . . 1 . . . . . . . . . 2 1 . . 2 1 . Repair Stations 2 | . . . 2 . . . . . . . . . . . . . . . . . . . . . . . . . . . . . Recycling Units 12 | . 1 . 3 . 6 . . . . . . . . . . 1 . . . . . . . . . . . . . . 1 . Scanalyzers 6 | . . . . . . 1 . . . . . . . . . . . . . . 3 . . . . . . . 2 . . . Garrison Access 12 | . . . . 2 . 3 . . . . 1 . . . . 1 . . . . . . . . . 1 . . 2 . 2 . Terminal Hacks 85 | . 3 1 . 11 4 5 1 1 30 . . . 3 . 2 6 . . . . 1 3 1 . 4 1 2 . 4 1 . 1 Record 11 | . . . . . . . . . 11 . . . . . . . . . . . . . . . . . . . . . . . Part Schematic 10 | . . . . . . . . . 9 . . . . . . . . . . . . . . . 1 . . . . . . . Robot Schematic 8 | . . . . 1 . . . . 7 . . . . . . . . . . . . . . . . . . . . . . . Robot Analysis 3 | . 1 . . 2 . . . . . . . . . . . . . . . . . . . . . . . . . . . . Prototype ID Bank 13 | . . . . 2 2 1 . . 3 . . . . . . 2 . . . . 1 . . . 1 . 1 . . . . . Open Door 9 | . . 1 . 2 . . 1 1 . . . . . . 2 . . . . . . . 1 . . . . . . . . 1 Branch Access Points 3 | . . . . . . . . . . . . . 1 . . 1 . . . . . . . . . . . . 1 . . . Terminal Index 1 | . . . . 1 . . . . . . . . . . . . . . . . . . . . . . . . . . . . Alert Level 5 | . . . . 1 . . . . . . . . 1 . . . . . . . . 1 . . . 1 . . 1 . . . Unreport Threat 9 | . . . . . . 2 . . . . . . 1 . . 2 . . . . . 1 . . 1 . . . 2 . . . Locate Traps 5 | . 1 . . 2 . 1 . . . . . . . . . . . . . . . . . . . . 1 . . . . . Disarm Traps 1 | . . . . . . 1 . . . . . . . . . . . . . . . . . . . . . . . . . . Hauler Manifests 2 | . 1 . . . . . . . . . . . . . . . . . . . . 1 . . . . . . . . . . Zone Layout 3 | . . . . . . . . . . . . . . . . 1 . . . . . . . . 1 . . . . 1 . . Release Object 2 | . . . . . 2 . . . . . . . . . . . . . . . . . . . . . . . . . . . Fabricator Hacks 5 | . . . . . . 2 . . . . 1 . . . . 1 . . . . . . . . . . . . . 1 . . Network Status 4 | . . . . . . 2 . . . . . . . . . 1 . . . . . . . . . . . . . 1 . . Build 1 | . . . . . . . . . . . 1 . . . . . . . . . . . . . . . . . . . . . Repair Station Hacks 2 | . . . 2 . . . . . . . . . . . . . . . . . . . . . . . . . . . . . Scan Component 1 | . . . 1 . . . . . . . . . . . . . . . . . . . . . . . . . . . . . Repair 1 | . . . 1 . . . . . . . . . . . . . . . . . . . . . . . . . . . . . Recycling Unit Hacks 2 | . . . 1 . . . . . . . . . . . . 1 . . . . . . . . . . . . . . . . Retrieve Components 2 | . . . 1 . . . . . . . . . . . . 1 . . . . . . . . . . . . . . . . Scanalyzer 3 | . . . . . . 1 . . . . . . . . . . . . . . . . . . . . . . 2 . . . Insert Component 3 | . . . . . . 1 . . . . . . . . . . . . . . . . . . . . . . 2 . . . Garrison Access Hacks 3 | . . . . 1 . . . . . . . . . . . 1 . . . . . . . . . 1 . . . . . . Seal Access 3 | . . . . 1 . . . . . . . . . . . 1 . . . . . . . . . 1 . . . . . . Unauthorized Hacks 46 | . 9 . 3 3 13 4 . . . . 1 . 2 . . 2 . . . . 1 2 . . 2 . 1 . 1 2 . . Terminals 38 | . 8 . 3 3 8 4 . . . . . . 2 . . 2 . . . . 1 2 . . 2 . . . 1 2 . . Botnet 23 | . 2 . 2 2 3 3 . . . . . . 2 . . 2 . . . . 1 1 . . 2 . . . 1 2 . . Operators 3 | . 1 . . 1 . . . . . . . . . . . . . . . . . 1 . . . . . . . . . . Skim 12 | . 5 . 1 . 5 1 . . . . . . . . . . . . . . . . . . . . . . . . . . Fabricators 2 | . . . . . . . . . . . 1 . . . . . . . . . . . . . . . 1 . . . . . Prioritize 1 | . . . . . . . . . . . 1 . . . . . . . . . . . . . . . . . . . . . Overload 1 | . . . . . . . . . . . . . . . . . . . . . . . . . . . 1 . . . . . Repair Stations . | . . . . . . . . . . . . . . . . . . . . . . . . . . . . . . . . . Recycling Units 6 | . 1 . . . 5 . . . . . . . . . . . . . . . . . . . . . . . . . . . Tunnel 6 | . 1 . . . 5 . . . . . . . . . . . . . . . . . . . . . . . . . . . Scanalyzers . | . . . . . . . . . . . . . . . . . . . . . . . . . . . . . . . . . Garrison Access . | . . . . . . . . . . . . . . . . . . . . . . . . . . . . . . . . . Data Cores Recovered 5 | . . . 1 . . . . . . . 1 . . . . . . . . . . . . . . . . . 1 . . 2 Used 1 | . . . . . . . . . . . . . . . . . . . . . . . . . . . . . . . . 1 Hacking Detections 88 | . 5 . 3 12 6 11 . . . . 3 . 4 . . 6 . . . . 3 5 . . 5 3 5 . 6 5 4 2 Full Trace Events 2 | . . . . . . . . . . . . . . . . . . . . . . . . . . . 1 . 1 . . . Feedback Events 1 | . . . . . . . . . . . . . . . . . . . . . . . . . . . . . 1 . . . Hackware Fried 1 | . . . . . . . . . . . . . . . . . . . . . . . . . . . . . 1 . . . Feedback Blocked . | . . . . . . . . . . . . . . . . . . . . . . . . . . . . . . . . . Robot Schematics Acquired 8 | . . . . 1 . . . . 7 . . . . . . . . . . . . . . . . . . . . . . . Robots Built . | . . . . . . . . . . . . . . . . . . . . . . . . . . . . . . . . . Authchips . | . . . . . . . . . . . . . . . . . . . . . . . . . . . . . . . . . Time . | . . . . . . . . . . . . . . . . . . . . . . . . . . . . . . . . . Total Robot Build Rating . | . . . . . . . . . . . . . . . . . . . . . . . . . . . . . . . . . Part Schematics Acquired 10 | . . . . . . . . . 9 . . . . . . . . . . . . . . . 1 . . . . . . . Parts Built 2 | . . . . . . . . . . . 2 . . . . . . . . . . . . . . . . . . . . . Authchips . | . . . . . . . . . . . . . . . . . . . . . . . . . . . . . . . . . Time 128 | . . . . . . . . . . . 128 . . . . . . . . . . . . . . . . . . . . . Total Part Build Rating 16 | . . . . . . . . . . . 16 . . . . . . . . . . . . . . . . . . . . . Part Studies Acquired . | . . . . . . . . . . . . . . . . . . . . . . . . . . . . . . . . . Parts Repaired 1 | . . . 1 . . . . . . . . . . . . . . . . . . . . . . . . . . . . . Time 26 | . . . 26 . . . . . . . . . . . . . . . . . . . . . . . . . . . . . Parts Recycled . | . . . . . . . . . . . . . . . . . . . . . . . . . . . . . . . . . Recycled Matter . | . . . . . . . . . . . . . . . . . . . . . . . . . . . . . . . . . Retrieved Matter . | . . . . . . . . . . . . . . . . . . . . . . . . . . . . . . . . . Retrieved Components 10 | . . . 9 . . . . . . . . . . . . 1 . . . . . . . . . . . . . . . . Parts Scanalyzed . | . . . . . . . . . . . . . . . . . . . . . . . . . . . . . . . . . Part Schematics Acquired . | . . . . . . . . . . . . . . . . . . . . . . . . . . . . . . . . . Parts Damaged . | . . . . . . . . . . . . . . . . . . . . . . . . . . . . . . . . . Bothacking | -11 -10 -10 -9 -9 -9 -7 -7 -7 -7 -6 -6 -6 -6 -6 -6 -5 -5 -5 -5 -4 -4 -4 -4 -4 -4 -3 -3 -3 -2 -2 -1 -1 ------------ Run | Yrd Mat Min Mat Sto Rec Fac Low Low Dat Pro Fac Was Fac Low Low Fac Upp Upp War Pro Fac Ext Cet Arc Hub Res Arm Lab Res Tes Acc Com Used RIF Installer . | . . . . . . . . . . . . . . . . . . . . . . . . . . . . . . . . . Robots Hacked . | . . . . . . . . . . . . . . . . . . . . . . . . . . . . . . . . . Non-combat . | . . . . . . . . . . . . . . . . . . . . . . . . . . . . . . . . . Combat . | . . . . . . . . . . . . . . . . . . . . . . . . . . . . . . . . . Robot Hacks Applied . | . . . . . . . . . . . . . . . . . . . . . . . . . . . . . . . . . Relay Couplers Released . | . . . . . . . . . . . . . . . . . . . . . . . . . . . . . . . . . Fabnet Peak Effective % . | . . . . . . . . . . . . . . . . . . . . . . . . . . . . . . . . . Robots Rewired 20 | . . . . . 9 . . . . 2 . . . . . . . . . . . 3 . . . . 6 . . . . . Allies Hacked 2 | . . . . . . . . . . . . . . . . . . . . . . 1 . . . . 1 . . . . . Hacks Repelled . | . . . . . . . . . . . . . . . . . . . . . . . . . . . . . . . . . Allies | -11 -10 -10 -9 -9 -9 -7 -7 -7 -7 -6 -6 -6 -6 -6 -6 -5 -5 -5 -5 -4 -4 -4 -4 -4 -4 -3 -3 -3 -2 -2 -1 -1 -------- Run | Yrd Mat Min Mat Sto Rec Fac Low Low Dat Pro Fac Was Fac Low Low Fac Upp Upp War Pro Fac Ext Cet Arc Hub Res Arm Lab Res Tes Acc Com Total Allies 62 | . . . . 10 9 . . . . 2 . 19 . . . . . . . . . 11 5 . . . 6 . . . . . Largest Group 19 | . . . . 10 15 3 . . . 2 . 19 19 1 . . . . . . . 6 10 9 9 4 3 3 3 . . . Highest-Rated Group 795 | . . . . 88 189 36 . . . 50 . 684 684 50 . . . . . . . 361 795 624 624 254 168 168 168 . . . Highest-Rated Ally 159 | . . . . 16 27 18 . . . 30 . 50 50 50 . . . . . . . 159 159 96 96 96 56 56 56 . . . Total Orders 7 | . . . . . 5 1 . . . . . . . . . . . . . . . . . . . . . 1 . . . . STAY 3 | . . . . . 2 . . . . . . . . . . . . . . . . . . . . . . 1 . . . . FOLLOW 2 | . . . . . 2 . . . . . . . . . . . . . . . . . . . . . . . . . . . DROP 1 | . . . . . 1 . . . . . . . . . . . . . . . . . . . . . . . . . . . EXPLORE 1 | . . . . . . 1 . . . . . . . . . . . . . . . . . . . . . . . . . . Ally Attacks 472 | . . . . 8 43 12 . . . 6 . . 177 2 . . . . . . . 64 37 9 38 26 27 . 23 . . . Total Damage 15086 | . . . . 70 568 293 . . . 201 . . 6231 195 . . . . . . . 1522 1097 304 1492 1021 1255 . 837 . . . Kills 92 | . . . . 2 7 2 . . . . . . 45 . . . . . . . . 6 4 1 7 8 4 . 6 . . . Allies Corrupted 3 | . . . . . . . . . . . . . 1 . . . . . . . . 2 . . . . . . . . . . Allies Melted 3 | . . . . . . . . . . . . . . . . . . . . . . . . . . . . . . . . 3 Intel | -11 -10 -10 -9 -9 -9 -7 -7 -7 -7 -6 -6 -6 -6 -6 -6 -5 -5 -5 -5 -4 -4 -4 -4 -4 -4 -3 -3 -3 -2 -2 -1 -1 ------- Run | Yrd Mat Min Mat Sto Rec Fac Low Low Dat Pro Fac Was Fac Low Low Fac Upp Upp War Pro Fac Ext Cet Arc Hub Res Arm Lab Res Tes Acc Com Active Infowar (turns) 15895 | 63 1263 594 . . . . . 74 . . 275 . 582 643 1672 968 624 439 174 267 631 1377 853 106 387 760 1354 559 787 256 119 1068 Optics 10177 | . . . . . . . . . . . . . . . . 416 624 439 174 267 631 1377 853 106 387 760 1354 559 787 256 119 1068 Sensors 4126 | . . . . . . . . . . . . . . . . 893 164 . . . 393 221 . . 387 760 991 . . 70 119 128 Seismic 4892 | 63 1263 594 . . . . . 74 . . . . 582 643 1672 1 . . . . . . . . . . . . . . . . Cloaking 2 | . . . . . . . . . . . . . . . . . . . . . . . . . . . . . . . . 2 Jamming 519 | . . . . . . . . . . . 275 . . . . . . . . . . . . . . . 244 . . . . . ECM 524 | . . . . . . . . . . . . . . . . . . . . . . . . . . . . . 524 . . . Robot Analysis Total 3 | . 1 . . 2 . . . . . . . . . . . . . . . . . . . . . . . . . . . . Derelict Logs Recovered 11 | . . 1 . . . . 1 1 . 1 . . . 1 1 . 1 2 . 2 . . . . . . . . . . . . Drone Launches 17 | . . . . . . 6 1 1 . 4 5 . . . . . . . . . . . . . . . . . . . . . Drone Recoveries 12 | . . . . . . 3 . 1 . 3 5 . . . . . . . . . . . . . . . . . . . . . Exploration | -11 -10 -10 -9 -9 -9 -7 -7 -7 -7 -6 -6 -6 -6 -6 -6 -5 -5 -5 -5 -4 -4 -4 -4 -4 -4 -3 -3 -3 -2 -2 -1 -1 ------------- Run | Yrd Mat Min Mat Sto Rec Fac Low Low Dat Pro Fac Was Fac Low Low Fac Upp Upp War Pro Fac Ext Cet Arc Hub Res Arm Lab Res Tes Acc Com Turns Passed 27371 | 131 1263 967 622 1378 3031 2206 829 1057 85 518 324 726 935 850 1672 999 624 439 174 284 631 1377 853 106 387 760 1354 559 787 256 119 1068 Spaces Moved 20358 | 54 470 536 263 681 1276 1716 850 1010 89 436 363 515 648 685 704 996 677 617 195 279 723 1245 285 86 370 759 797 181 1097 343 308 1104 Core . | . . . . . . . . . . . . . . . . . . . . . . . . . . . . . . . . . Treads 10034 | 52 470 536 164 681 1262 742 118 300 89 436 363 515 648 134 399 . . 94 195 279 467 755 . . . . 61 . . . 170 1104 Legs 4014 | 2 . . . . 14 974 . . . . . . . . . 658 398 . . . 31 . 1 86 370 759 721 . . . . . Wheels 99 | . . . 99 . . . . . . . . . . . . . . . . . . . . . . . . . . . . . Hover 3256 | . . . . . . . 732 710 . . . . . 551 137 105 279 523 . . . . 219 . . . . . . . . . Flight 2955 | . . . . . . . . . . . . . . . 168 233 . . . . 225 490 65 . . . 15 181 1097 343 138 . Fastest Speed 24 | 120 160 160 130 160 119 73 73 73 73 73 73 73 73 120 99 75 61 61 81 81 44 36 44 44 44 44 51 51 35 32 24 24 Average Speed 89 | 158 160 160 148 160 140 109 73 73 73 73 73 73 114 120 148 83 69 64 81 81 73 58 85 44 44 80 115 51 45 34 28 24 Slowest Speed 201 | 160 160 160 160 160 171 192 73 73 73 73 73 73 120 120 201 99 75 81 81 81 129 107 91 44 44 91 190 51 51 35 35 24 Overloaded Moves 3 | . . . . . . . . . . . . . . . . . . . . . . . . . . . . . . 3 . . Propulsion Burnouts . | . . . . . . . . . . . . . . . . . . . . . . . . . . . . . . . . . Robots Hopped 19 | . . . . . . . . . . . . . . . . . . . . . . 2 . . . . . . 9 8 . . Potential Cave-ins 3 | . . . . . . . . . . 1 . . . . . . 2 . . . . . . . . . . . . . . . Cave-ins Triggered . | . . . . . . . . . . . . . . . . . . . . . . . . . . . . . . . . . Exploration Rate (%) 57 | 4 73 90 23 96 99 57 91 94 69 55 17 96 22 95 71 26 67 85 17 54 17 89 74 80 42 21 65 87 50 45 14 28 Regions Visited 32 Branch Regions 21 Pre-discovered Areas 12 | . 2 . . . 6 . . 1 1 . . . . 1 1 . . . . . . . . . . . . . . . . . Known Exits Taken 26 | . 1 1 1 . 1 1 1 1 1 1 . . 1 . . 1 1 1 1 1 1 1 1 1 1 1 1 1 1 1 1 . Unknown Exits Taken 4 | 1 . . . 1 . . . . . . . . . 1 1 . . . . . . . . . . . . . . . . . Scrap Searched 22 | . . 1 . . . . 3 4 . 2 . . . 2 4 . 3 2 . 1 . . . . . . . . . . . . Spaces Dug 234 | . 5 . 2 . . 16 1 1 . 29 9 . . . . 10 4 26 6 65 4 . . . 3 . 15 . 27 8 3 . Terrain Destroyed 728 | . 5 . 2 . . 111 1 10 . 86 9 4 4 12 62 26 19 61 6 88 4 19 14 7 16 15 70 . 52 8 3 14 Melee 73 | . 5 . 2 . . 3 . . . . 7 . . . . 10 1 . 2 . 4 . . . 3 . 10 . 20 3 3 . Projectile 308 | . . . . . . 35 1 10 . 11 2 4 4 4 11 12 11 9 4 11 . 19 14 7 13 15 60 . 32 5 . 14 AOE 347 | . . . . . . 73 . . . 75 . . . 8 51 4 7 52 . 77 . . . . . . . . . . . . Terrain Rammed . | . . . . . . . . . . . . . . . . . . . . . . . . . . . . . . . . . Walls Destroyed . | . . . . . . . . . . . . . . . . . . . . . . . . . . . . . . . . . Machines Disabled . | . . . . . . . . . . . . . . . . . . . . . . . . . . . . . . . . . Actions | -11 -10 -10 -9 -9 -9 -7 -7 -7 -7 -6 -6 -6 -6 -6 -6 -5 -5 -5 -5 -4 -4 -4 -4 -4 -4 -3 -3 -3 -2 -2 -1 -1 --------- Run | Yrd Mat Min Mat Sto Rec Fac Low Low Dat Pro Fac Was Fac Low Low Fac Upp Upp War Pro Fac Ext Cet Arc Hub Res Arm Lab Res Tes Acc Com Total 27984 | 75 927 581 420 844 2455 1954 1047 1311 108 583 393 827 809 710 1315 1113 810 654 205 325 801 1794 867 143 566 887 1087 615 1294 454 331 1679 Wait 5646 | 5 418 7 71 53 1040 94 172 278 20 73 6 258 109 3 572 50 99 24 5 24 40 371 532 46 163 96 95 407 128 91 14 282 Move 20293 | 53 469 535 262 680 1275 1715 849 1009 88 435 363 514 647 684 703 995 676 616 194 278 722 1240 284 85 369 758 796 180 1080 328 307 1104 Hop 15 | . . . . . . . . . . . . . . . . . . . . . . 2 . . . . . . 7 6 . . Pick Up 207 | 1 6 2 17 13 3 29 5 1 . 1 2 4 10 5 8 13 4 1 . 3 10 15 9 . 2 5 14 2 5 5 2 10 Fast Attach 40 | 1 . 1 4 . 2 2 1 . . 1 1 . . . . . 1 . . . . 2 . 1 1 . 4 5 1 1 . 11 Attach 63 | . . 2 5 1 . 5 2 . . 3 2 2 1 . 1 4 2 1 1 3 2 4 . . . 2 3 . 3 1 2 11 Detach 45 | . . . 1 . . 3 1 . . 3 1 3 . . 1 2 2 1 1 3 . 3 . 1 1 . . 3 . 1 . 14 Swap 114 | 2 5 2 9 15 2 1 1 4 . 2 . . 2 2 1 6 2 . . . 3 13 6 . 1 1 11 . 6 4 . 13 Drop 182 | . . . 13 16 14 12 4 2 . 1 . 5 7 9 8 8 3 3 . 1 8 15 8 . 3 5 11 2 4 5 1 14 Fire 1013 | 11 22 31 31 48 35 82 12 17 . 47 5 41 31 6 21 14 20 8 2 13 6 77 28 10 20 19 116 . 39 6 2 193 Melee 175 | . 5 . 7 5 . 6 . . . . 12 . . . . 21 1 . 2 . 10 14 . . 4 1 14 16 21 6 3 27 Ram . | . . . . . . . . . . . . . . . . . . . . . . . . . . . . . . . . . Kick 4 | . . . . . . 1 . . . . . . . . . . . . . . . . . . 2 . 1 . . . . . Crush 28 | 2 2 1 . 5 11 4 . . . . 1 . 2 . . . . . . . . . . . . . . . . . . . Escape Stasis 24 | . . . . . . . . . . . . . . . . . . . . . . 24 . . . . . . . . . . Rewire 126 | . . . . . 73 . . . . 17 . . . . . . . . . . . 14 . . . . 22 . . . . . Trap 1 | . . . . . . . . . . . . . . 1 . . . . . . . . . . . . . . . . . . Miscellaneous 8 | . . . . 8 . . . . . . . . . . . . . . . . . . . . . . . . . . . . Route ------- -11/Scrapyard -10/Materials (discovered 5 exits: *Mat x3 / *Min x2) -10/Mines (discovered 3 exits: *Mat x2 / Exi) -9/Materials (discovered 4 exits: Mat / Min / *Sto x2) -9/Storage (discovered 2 exits: *Mat / *Rec) -9/Recycling -7/Factory (discovered 5 exits: *Fac x4 / *Low) -7/Lower Caves (discovered 2 exits: *Low / *Dat) -7/Lower Caves (discovered 2 exits: *Fac / *Dat) -7/Data Miner -6/Proximity Caves -6/Factory (discovered 2 exits: Low x2) -6/Waste -6/Factory (discovered 2 exits: *Low x2) -6/Lower Caves -6/Lower Caves -5/Factory (discovered 3 exits: *Fac / *Upp x2) -5/Upper Caves -5/Upper Caves (discovered 2 exits: *Fac / *War) -5/Warlord -4/Proximity Caves -4/Factory (discovered 3 exits: *Res x2 / *Ext) -4/Extension (discovered 2 exits: *Res / *Cet) -4/Cetus (discovered 2 exits: *Res / *Arc) -4/Archives (discovered 2 exits: *Hub x2) -4/Hub_04(d) -3/Research -3/Armory -3/Lab -2/Research (discovered 4 exits: *Acc x2 / *Tes x2) -2/Testing -1/Access -1/Command (discovered 2 exits: *Sur x2) By MAIN.C's Side History --------- Turn | Location | Event 1 | -11/Scrapyard | Discovered new exit (range 3) 132 | -11/Scrapyard | Entered Materials 296 | -10/Materials | Discovered new exit (range 12) 314 | -10/Materials | Build established: Mutant 705 | -10/Materials | Discovered new exit (range 13) 777 | -10/Materials | Discovered new exit (range 12) 788 | -10/Materials | Learned location of 2 exits from Subcaves 857 | -10/Materials | Learned location of 1 exit from Recycling 916 | -10/Materials | Identified exit to Materials 916 | -10/Materials | Identified exit to Mines 964 | -10/Materials | Learned Storage emergency access door positions 1030 | -10/Materials | Learned 2 Mines zone layouts 1068 | -10/Materials | Learned location of Recycling (-9) 1168 | -10/Materials | Learned location of 2 exits from Mines 1395 | -10/Materials | Entered Mines 1396 | -10/Mines | Identified exit to Exiles 1751 | -10/Mines | Found the Drone Emporium 1758 | -10/Mines | Found Prototype Device 1759 | -10/Mines | Identified Sensor Drone Bay 1932 | -10/Mines | Learned 8 Materials zone layouts 1944 | -10/Mines | Discovered exit to Materials (range 9) 2021 | -10/Mines | Lost 3 parts (1p1n1u) 2264 | -10/Mines | Deemed a non-threat by the Exiles lab entrance 2291 | -10/Mines | Core integrity fell below 50% 2362 | -10/Mines | Entered Materials 2362 | -9/Materials | Evolved 2 slots: Propulsion x1, Weapon x1 2363 | -9/Materials | Identified exit to Mines 2364 | -9/Materials | Identified exit to Materials 2364 | -9/Materials | Identified exit to Storage 2370 | -9/Materials | Lost 3 parts (1u2w) 2940 | -9/Materials | Repaired Lgt. Armor Plating 2984 | -9/Materials | Entered Storage 3250 | -9/Storage | Build established: Tank 3289 | -9/Storage | Used back door to open Recycling access 3289 | -9/Storage | Discovered new exit (range 5) 3564 | -9/Storage | Build established: Scavenger-Tank 3958 | -9/Storage | Discovered exit to Materials (range 10) 4019 | -9/Storage | Assisted by bots powering up and referring to "LRC-V3" 4362 | -9/Storage | Entered Recycling 4362 | -9/Recycling | Accompanied by 9 allies 4363 | -9/Recycling | Identified exit to Factory 4366 | -9/Recycling | Build established: Commander-Tank 4900 | -9/Recycling | Learned Materials trap positions 4909 | -9/Recycling | Scanned before Scraplab entrance 5122 | -9/Recycling | Learned Storage terminal intel 5161 | -9/Recycling | Learned Materials emergency access door positions 5342 | -9/Recycling | Entered Scraplab 5379 | -9/Recycling | Angered Scraplab inhabitants 5381 | -9/Recycling | Found Prototype Device 5381 | -9/Recycling | Identified Scrap Engine 5415 | -9/Recycling | Lost 3 allies 5851 | -9/Recycling | Build established: Commander-Construct 7130 | -9/Recycling | Murdered 5 allies 7393 | -9/Recycling | Entered Factory 7393 | -7/Factory | Accompanied by 3 allies 7393 | -7/Factory | Evolved 4 slots: Power x1, Propulsion x1, Utility x2 7415 | -7/Factory | Build established: Construct 8182 | -7/Factory | Discovered new exit (range 10) 8253 | -7/Factory | Identified exit to Factory 8798 | -7/Factory | Discovered exit to Factory (range 4) 9150 | -7/Factory | Discovered exit to Factory (range 8) 9212 | -7/Factory | Discovered exit to Factory (range 15) 9315 | -7/Factory | Discovered new exit (range 9) 9326 | -7/Factory | Identified exit to Lower Caves 9599 | -7/Factory | Entered Lower Caves 9600 | -7/Lower Caves | A Derelict revealed a hidden shortcut to meet someone special 9652 | -7/Lower Caves | Found Alien Artifact 9652 | -7/Lower Caves | Identified Core Expander 9652 | -7/Lower Caves | Installed Core Expander, added new Utility slot 10350 | -7/Lower Caves | Encountered a Warlord checkpoint 10350 | -7/Lower Caves | Discovered new exit (range 5) 10368 | -7/Lower Caves | Identified exit to Lower Caves 10428 | -7/Lower Caves | Entered another Lower Caves area 10428 | -7/Lower Caves | Accompanied by 1 ally 10440 | -7/Lower Caves | Discovered exit to Factory (range 3) 11090 | -7/Lower Caves | Attracted the attention of an 0b10 checkpoint 11283 | -7/Lower Caves | Encountered a Warlord checkpoint 11341 | -7/Lower Caves | Discovered new exit (range 15) 11367 | -7/Lower Caves | Identified exit to Data Miner 11485 | -7/Lower Caves | Entered Data Miner 11485 | -7/Data Miner | Accompanied by 1 ally 11485 | -7/Data Miner | Identified exit to Proximity Caves 11485 | -7/Data Miner | Discovered exit to Proximity Caves (range 6) 11499 | -7/Data Miner | Met Data Miner 11514 | -7/Data Miner | Learned location of Section 7 (-3) 11514 | -7/Data Miner | Acquired the access code to Warlord's prototype stash 11531 | -7/Data Miner | Received God Mode back door access code from Data Miner 11570 | -7/Data Miner | Entered Proximity Caves 11570 | -6/Proximity Caves | Accompanied by 1 ally 11696 | -6/Proximity Caves | Acquired the password to a Derelict Tinkerer's latest research 11711 | -6/Proximity Caves | Found Prototype Special Weapon 11787 | -6/Proximity Caves | Attracted the attention of an 0b10 outpost 11827 | -6/Proximity Caves | Destroyed 13 combat bots 12044 | -6/Proximity Caves | Discovered exit to Factory (range 8) 12071 | -6/Proximity Caves | Learned 12 Factory zone layouts 12088 | -6/Proximity Caves | Entered Factory 12088 | -6/Factory | Accompanied by 1 ally 12088 | -6/Factory | Evolved 2 slots: Utility x1, Weapon x1 12089 | -6/Factory | Identified exit to Lower Caves 12332 | -6/Factory | Fabricated Mic. Antimatter Reactor? 12412 | -6/Factory | Sucked down chute 12412 | -6/Factory | Entered Waste 12429 | -6/Waste | Spotted C-40 Crusher 12476 | -6/Waste | Spotted C-40 Crusher 12484 | -6/Waste | Destroyed C-40 Crusher 12512 | -6/Waste | Spotted C-40 Crusher 12523 | -6/Waste | Spotted C-40 Crusher 12533 | -6/Waste | Spotted C-40 Crusher 12533 | -6/Waste | Spotted C-40 Crusher 12533 | -6/Waste | Destroyed C-40 Crusher 12538 | -6/Waste | Destroyed C-40 Crusher 12553 | -6/Waste | Destroyed C-40 Crusher 12578 | -6/Waste | Destroyed C-40 Crusher 12633 | -6/Waste | Discovered new exit (range 13) 12644 | -6/Waste | Found Fusion Bomb Launcher 12662 | -6/Waste | Warlord forces began an assault 12854 | -6/Waste | Identified Molecular Deconstructor 13138 | -6/Waste | Entered Factory 13138 | -6/Factory | Accompanied by 19 allies 13231 | -6/Factory | Lost 3 allies 13579 | -6/Factory | Garrison activated, responded to threat 13725 | -6/Factory | Spotted B-75 Beast 13739 | -6/Factory | Allies destroyed B-75 Beast 13761 | -6/Factory | Lost 3 allies 13838 | -6/Factory | First assault squad dispatched 13876 | -6/Factory | Lost 3 allies 14008 | -6/Factory | Lost 3 allies 14073 | -6/Factory | Entered Lower Caves 14073 | -6/Lower Caves | Accompanied by 1 ally 14377 | -6/Lower Caves | Learned location of Zion (-6) 14384 | -6/Lower Caves | Encountered a Warlord checkpoint 14757 | -6/Lower Caves | Spotted B-75 Beast 14912 | -6/Lower Caves | Discovered new exit (range 10) 14923 | -6/Lower Caves | Entered another Lower Caves area 14973 | -6/Lower Caves | Discovered new exit (range 12) 14975 | -6/Lower Caves | Attracted the attention of an 0b10 checkpoint 15679 | -6/Lower Caves | Attacked by a delusional Derelict stockpiling parts 16202 | -6/Lower Caves | Attracted the attention of an 0b10 outpost 16595 | -6/Lower Caves | Entered Factory 16595 | -5/Factory | Evolved 2 slots: Propulsion x1, Utility x1 16596 | -5/Factory | Identified exit to Upper Caves 16744 | -5/Factory | Watched by a mysterious "MATRIX" hacker. 17320 | -5/Factory | Discovered new exit (range 14) 17343 | -5/Factory | Identified exit to Factory 17594 | -5/Factory | Entered Upper Caves 17605 | -5/Upper Caves | Attracted the attention of an 0b10 checkpoint 17933 | -5/Upper Caves | Encountered a Warlord checkpoint 17994 | -5/Upper Caves | Lost 3 allies 18009 | -5/Upper Caves | Learned Factory trap positions 18051 | -5/Upper Caves | Discovered new exit (range 9) 18055 | -5/Upper Caves | Identified exit to Upper Caves 18204 | -5/Upper Caves | Attracted the attention of an 0b10 outpost 18218 | -5/Upper Caves | Entered another Upper Caves area 18218 | -5/Upper Caves | Discovered exit to Factory (range 6) 18568 | -5/Upper Caves | Learned location of 1 exit from Factory 18569 | -5/Upper Caves | Learned Factory terminal intel 18569 | -5/Upper Caves | Discovered new exit (range 15) 18591 | -5/Upper Caves | Identified exit to Warlord 18657 | -5/Upper Caves | Entered Warlord 18685 | -5/Warlord | System corruption cleaned by Quarantine Array 18702 | -5/Warlord | Discovered new exit (range 15) 18830 | -5/Warlord | Identified exit to Proximity Caves 18831 | -5/Warlord | Entered Proximity Caves 18836 | -4/Proximity Caves | Spotter reported a threat 19093 | -4/Proximity Caves | Attracted the attention of an 0b10 checkpoint 19115 | -4/Proximity Caves | Entered Factory 19115 | -4/Factory | Evolved 2 slots: Utility x1, Weapon x1 19116 | -4/Factory | Identified exit to Extension 19117 | -4/Factory | Loaded intel: 90 trap records 19118 | -4/Factory | Loaded intel: 28 terminal locations 19293 | -4/Factory | Discovered new exit (range 11) 19300 | -4/Factory | Identified exit to Research 19501 | -4/Factory | Discovered exit to Research (range 13) 19746 | -4/Factory | Entered Extension 20033 | -4/Extension | Spotted B-86 Titan 20064 | -4/Extension | Rescued a captive Derelict 20086 | -4/Extension | Rescued a captive Derelict 20087 | -4/Extension | Rescued a captive Derelict 20302 | -4/Extension | Attached CPS modules to B-86 Titan. 20308 | -4/Extension | Spotted B-86 Titan 20336 | -4/Extension | Destroyed B-86 Titan 20385 | -4/Extension | Attached CPS modules to B-86 Titan. 20464 | -4/Extension | Destroyed B-86 Titan 20471 | -4/Extension | Disrupted transfer network 20750 | -4/Extension | Rescued a captive Derelict 20802 | -4/Extension | Rescued a captive Derelict 20815 | -4/Extension | Rescued A7 20950 | -4/Extension | Rescued a captive Derelict 20951 | -4/Extension | Rescued a captive Derelict 21037 | -4/Extension | Discovered exit to Research (range 10) 21038 | -4/Extension | Discovered new exit (range 6) 21052 | -4/Extension | Identified exit to Cetus 21123 | -4/Extension | Entered Cetus 21123 | -4/Cetus | Accompanied by 6 allies (A7) 21128 | -4/Cetus | Acquired a Cetus Manufacturing Module code from A7 21146 | -4/Cetus | Spotted Cetus Guard 21148 | -4/Cetus | Spotted Cetus Guard 21148 | -4/Cetus | Spotted Cetus Guard 21148 | -4/Cetus | Spotted Cetus Guard 21155 | -4/Cetus | Destroyed Cetus Guard 21159 | -4/Cetus | Destroyed Cetus Guard 21161 | -4/Cetus | Destroyed Cetus Guard 21163 | -4/Cetus | Destroyed Cetus Guard 21314 | -4/Cetus | Started Cetus Manufacturing Module 21321 | -4/Cetus | Escorted A7 to Cetus Mainframe 21339 | -4/Cetus | Manufactured an Enhanced Grunt 21364 | -4/Cetus | Manufactured an Enhanced Grunt 21389 | -4/Cetus | Manufactured an Enhanced Grunt 21414 | -4/Cetus | Manufactured an Enhanced Grunt 21439 | -4/Cetus | Manufactured an Enhanced Grunt 21521 | -4/Cetus | Discovered new exit (range 22) 21545 | -4/Cetus | Spotted Cetus Guard 21547 | -4/Cetus | Spotted Cetus Guard 21549 | -4/Cetus | Spotted Cetus Guard 21554 | -4/Cetus | Spotted Cetus Guard 21556 | -4/Cetus | Destroyed Cetus Guard 21558 | -4/Cetus | Discovered exit to Research (range 22) 21565 | -4/Cetus | Allies destroyed Cetus Guard 21566 | -4/Cetus | Destroyed Cetus Guard 21568 | -4/Cetus | Allies destroyed Cetus Guard 21583 | -4/Cetus | Met Revision 17 21625 | -4/Cetus | Identified exit to Archives 21635 | -4/Cetus | Build established: Commander-Construct 21656 | -4/Cetus | Murdered A7 21659 | -4/Cetus | Extracted ID and sensor layout for unrecognized location from A7's data core 21660 | -4/Cetus | Found Prototype Protection 21668 | -4/Cetus | Identified Med. Regenerative Plating 21873 | -4/Cetus | Security sweep announced 21976 | -4/Cetus | Entered Archives 21976 | -4/Archives | Accompanied by 9 allies 22019 | -4/Archives | Discovered new exit (range 20) 22026 | -4/Archives | Discovered new exit (range 23) 22046 | -4/Archives | Identified exit to Hub_04(d) 22082 | -4/Archives | Entered Hub_04(d) 22082 | -4/Hub_04(d) | Accompanied by 9 allies 22130 | -4/Hub_04(d) | Discovered exit to Research (range 7) 22469 | -4/Hub_04(d) | Entered Research 22469 | -3/Research | Accompanied by 4 allies 22469 | -3/Research | Evolved 2 slots: Utility x1, Weapon x1 22470 | -3/Research | Identified exit to Armory 22669 | -3/Research | Revision forces began assault on 0b10 22718 | -3/Research | Lost 3 allies 22759 | -3/Research | Build established: Construct 22884 | -3/Research | Met up with Revision 17++ 23169 | -3/Research | Research terminal network offline 23229 | -3/Research | Entered Armory 23979 | -3/Armory | First assault squad dispatched 24008 | -3/Armory | Energy Cycler disabled 24357 | -3/Armory | Incoming investigation squad redirected 24496 | -3/Armory | Incoming assault squad redirected 24538 | -3/Armory | Discovered new exit (range 4) 24541 | -3/Armory | Identified exit to Lab 24583 | -3/Armory | Entered Lab 24583 | -3/Lab | Accompanied by 3 allies 24793 | -3/Lab | Discovered new exit (range 9) 24798 | -3/Lab | Identified exit to Research 24806 | -3/Lab | Hidden lab's door opened automatically 24806 | -3/Lab | Sensor layout match revealed 24807 | -3/Lab | Gained access to the hidden lab's interior 24887 | -3/Lab | Found Alien Artifact 24887 | -3/Lab | Identified Core Regenerator 24887 | -3/Lab | Used Core Regenerator, restored core integrity (+325) 24906 | -3/Lab | Found Alien Artifact 24906 | -3/Lab | Identified Integrated Dissipator 24906 | -3/Lab | Installed Integrated Dissipator, increased core heat dissipation (+20) 24919 | -3/Lab | Found Alien Artifact 25064 | -3/Lab | Found Prototype Hackware 25066 | -3/Lab | Found Prototype Protection 25066 | -3/Lab | Identified Exp. Powered Armor 25068 | -3/Lab | Found Prototype Energy Gun 25068 | -3/Lab | Identified Tachyon Dispersion Ray 25071 | -3/Lab | Found Prototype Energy Cannon 25071 | -3/Lab | Identified Potential Cannon 25142 | -3/Lab | Entered Research 25142 | -2/Research | Accompanied by 3 allies 25142 | -2/Research | Evolved 2 slots: Utility x2 25181 | -2/Research | Identified Deep Network Scanner 25200 | -2/Research | Garrison activated, responded to threat 25244 | -2/Research | Identified Transdimensional Reconstructor 25314 | -2/Research | Found Prototype Device 25367 | -2/Research | Identified Adv. Kinecellerator 25389 | -2/Research | Spotted B-90 Cyclops 25433 | -2/Research | Build established: Hacker-Construct 25703 | -2/Research | Spotted B-90 Cyclops 25804 | -2/Research | Spotted B-90 Cyclops 25806 | -2/Research | Discovered new exit (range 18) 25814 | -2/Research | Identified exit to Access 25829 | -2/Research | Discovered exit to Access (range 22) 25872 | -2/Research | Identified exit to Testing 25872 | -2/Research | Deep Network Scanner fried by hacking feedback 25929 | -2/Research | Entered Testing 25988 | -2/Testing | Spotted Striker 25988 | -2/Testing | Spotted Striker 26121 | -2/Testing | Found Exp. Targeting Computer 26140 | -2/Testing | Found Potential Cannon 26160 | -2/Testing | Found Prototype Device 26160 | -2/Testing | Identified 2N-1CE's Frost Array 26184 | -2/Testing | Discovered exit to Access (range 4) 26185 | -2/Testing | Entered Access 26185 | -1/Access | Evolved 2 slots: Propulsion x1, Utility x1 26288 | -1/Access | Spotted B-99 Colossus 26300 | -1/Access | Discovered new exit (range 7) 26301 | -1/Access | Identified exit to Command 26304 | -1/Access | Entered Command 26435 | -1/Command | Spotted M Guard 26435 | -1/Command | Spotted M Guard 26462 | -1/Command | Spotted Combat Programmer 26463 | -1/Command | Spotted Combat Programmer 26472 | -1/Command | Destroyed Combat Programmer 26473 | -1/Command | Destroyed Combat Programmer 26540 | -1/Command | Destroyed M Guard 26540 | -1/Command | All MAIN.C guards destroyed 26574 | -1/Command | Lost 6 parts (5u1w) 26765 | -1/Command | Met MAIN.C 26766 | -1/Command | System corruption reached 10% 26788 | -1/Command | Destroyed MAIN.C Shell 26788 | -1/Command | 0b10 Conduit disabled 26789 | -1/Command | Surrendered to MAIN.C 26789 | -1/Command | Loaded intel: 66 machine locations 26789 | -1/Command | Loaded intel: 92 trap records 26789 | -1/Command | Identified exit to Surface 26789 | -1/Command | Discovered exit to Surface (range 74) 26789 | -1/Command | Discovered exit to Surface (range 42) 26821 | -1/Command | Found Prototype Device 26821 | -1/Command | Identified Thermal Barrier 26828 | -1/Command | Found Prototype Device 26828 | -1/Command | Identified Exp. Cloaking Device 26830 | -1/Command | Found Prototype Device 26830 | -1/Command | Identified Exp. System Purifier 26855 | -1/Command | MAIN.C activated Command garrisons 26871 | -1/Command | Build established: Tank 26893 | -1/Command | Unknown forces attacked Command 26893 | -1/Command | Spotted EQ-004 26893 | -1/Command | Spotted EQ-006 26893 | -1/Command | Spotted EQ-005 26893 | -1/Command | Spotted EQ-001 26893 | -1/Command | Spotted EQ-002 26893 | -1/Command | Spotted EQ-003 26895 | -1/Command | Spotted EQ-000 26921 | -1/Command | Destroyed EQ-001 26932 | -1/Command | Destroyed EQ-006 26952 | -1/Command | Destroyed EQ-005 26960 | -1/Command | Destroyed EQ-003 26986 | -1/Command | Spotted EQ-021 26986 | -1/Command | Spotted EQ-020 26986 | -1/Command | Spotted EQ-018 26986 | -1/Command | Spotted EQ-019 26992 | -1/Command | Destroyed EQ-021 27014 | -1/Command | Found Prototype Processor 27014 | -1/Command | Identified Exp. Core Analyzer 27022 | -1/Command | Spotted EQ-028 27027 | -1/Command | Destroyed EQ-028 27029 | -1/Command | Spotted EQ-032 27040 | -1/Command | Destroyed EQ-032 27042 | -1/Command | Spotted EQ-022 27050 | -1/Command | Lost 9 allies 27069 | -1/Command | Destroyed EQ-022 27105 | -1/Command | Destroyed EQ-038 27107 | -1/Command | Spotted EQ-039 27107 | -1/Command | Spotted EQ-056 27112 | -1/Command | Destroyed EQ-056 27130 | -1/Command | Spotted EQ-055 27130 | -1/Command | Spotted EQ-046 27172 | -1/Command | Build established: Executioner 27189 | -1/Command | Spotted EQ-045 27191 | -1/Command | Spotted EQ-059 27199 | -1/Command | Destroyed EQ-045 27208 | -1/Command | Found Exp. Core Analyzer 27212 | -1/Command | Spotted EQ-060 27220 | -1/Command | Destroyed EQ-060 27221 | -1/Command | Spotted EQ-061 27227 | -1/Command | Spotted EQ-063 27260 | -1/Command | Lost 4 allies 27277 | -1/Command | Destroyed EQ-055 27281 | -1/Command | Spotted EQ-071 27299 | -1/Command | Destroyed EQ-071 27301 | -1/Command | Spotted EQ-077 27323 | -1/Command | Destroyed EQ-077 27323 | -1/Command | Spotted EQ-083 27325 | -1/Command | Spotted EQ-075 27329 | -1/Command | Spotted EQ-106 27329 | -1/Command | Spotted EQ-091 27329 | -1/Command | Spotted EQ-086 27329 | -1/Command | Spotted EQ-084 27330 | -1/Command | Spotted EQ-087 27333 | -1/Command | Destroyed EQ-091 27340 | -1/Command | Spotted EQ-085 27341 | -1/Command | Core integrity fell below 50% 27358 | -1/Command | Destroyed EQ-085 27359 | -1/Command | Spotted EQ-096 27361 | -1/Command | Spotted EQ-108 27372 | -1/Command | Attackers retreated from Command 27372 | *** | Fortifying 0b10! Last Messages --------------- 27364_ MAIN.C knocked back. 27364_ EQ-108 knocked back. 27364_ Slug penetrates H-88 Terminator. 27364_ Slug penetrates EQ-106. 27366_ EQ-106 knocked back. 27367_ EQ-096 knocked back. 27369_ Slug penetrates Reinforced Barrier. 27370_ Acquired 36 matter. 27371_ EQ-106 system terminally corrupted. 27371_ EQ-096 destroyed. 27372_ ALERT: Enemy forces retreating. MAIN.C: I admit your assistance was pivotal here. It looks like I was right to trust you. This attack appears to have been designed to merely test our defenses, although it was nearly effective enough to force me to take the conflict to the next level. Investigating the origins of these bots should be one of our highest priorities... [Achievement: Force of Scrap] [Achievement: Stronghold] Map ----- +----------------------------------------------------+ | ???# #??######??????????????????????????????????? | | ???# #??# ########???????????????????????????? | | #### #??# < ## #???????????????????????????? | | #??# ## #???????????????????????????? | | #### #??### ## #???????????????????????????? | | ???# #????# ## #?????####################### | | ???# #????# #?????#?????????????????????? | | ??## ##???# #?????#?##################### | | ??# ##### #?????#?#""" " % | | ??# =!% % #?????#?#"" % % !! | | ??# =%! #?????#?#""" =%%!! | | ??# =#####!= #?????#?#""""% % !!!!%% | | ###########*%! #?????#?#" % **%!![ | | + % #?????#?# %!%!% | | # !%! #?????#?#"" % =!*[! !=!=[ | | # !%[= #?????#?# % [%!=][= !=% | | # =*% #?????#?# % !%%!%%!![==%= | | # #?????#?# % !%!=!![!!%!%%! | | "T"""" ; [ % ##???##?# % * [%!%[!=%[%[ | | """"""" #*=! ;#?## #?#" % !%!!%=%=%% | | ##########;; | % % ; ## #?#!=* % % !*%![%= = | | #!!= !; = #?#![* ] ![%[=! | | ;%% %%*% ]!%!####l*%==%% % =[=*! % | | ; % !=%!==!p*gl===%!!= == ! % | | ! ; % % %!!%%!!!EMh7%[! %% =!* | | # %=[%![@!!%%!%E[ [!%= | | # " %!%!*=####*h% %%![ | | ""T"" #" !%%%!#?#[%[ % %% | | """"" #"" % %!%[=%#?#%%%% % % | | #########+##T * %*; #?##################### | | ######### ##"" ! =%% #?????????????????????? | | ## ##"" =!=! *!!; ####################### | | ## ##" =%!%! ; #?????????????????????? | | ## ## *!=!= ;##?????????????????????? | | ## ## !%!= %% ##??????????????????????? | | + ## %% !%!%% #???????????????????????? | | ##### !=*% " = #???????????????????????? | | #???# ! """ % % ##??????????????????????? | | #??## *%! " = % * "#??????????????????????? | | #??#; % "* # #?????????????????????? | | ##### %%!% = ###?????????????????????? | | # ## % %=! % #???????????????????????? | | ###+####!*#; % #???????????????????????? | | " %*%**!!! "" #???????????????????????? | | # ! !=**]!! %"""" "#??????????????????????? | | #!%* [ """" ##??????????????????????? | | #%! """" #???????????????????????? | | # #???????????????????????? | | # #########???????????????? | | # ! #???????????????? | +----------------------------------------------------+ Best States ------------- Heat Dissipation 262 Coolant Potential 100 Energy Generation 64 Energy Capacity 764 Matter Stores 300 Matter Capacity 300 Sight Range 23 Robot Scan Range 16 Terrain Scan Density 10 ECM Strength 2 Jamming Range 16 Cloak Strength 4 Power Amplification 30 Additional Mass Support 16 Armor Coverage 900 Resistance: TH 50 Core Shielding 20 Propulsion Shielding 33 Point Defense Rating 240 Weapon Cycling 20 Evasion (%) 73 Targeting Accuracy 12 Core Analysis 12 Recoil Reduction 5 Kinecelleration 50 Offensive Hacking 25 Item Schematics ----------------- Combat Drone Bay | -7/Data Miner | Free Lgt. Regenerative Plating | -7/Data Miner | Free Biomechanical Wings | -7/Data Miner | Free Thermal Defense Suite | -7/Data Miner | Free Imp. Heavy Laser | -7/Data Miner | Free Hvy. Treads | -7/Data Miner | Free Adv. Cooling System | -7/Data Miner | Free Wave Gun | -7/Data Miner | Free Myomer Leg | -7/Data Miner | Free Flak Gun | -4/Hub_04(d) | Hacked Robot Schematics ------------------ M-13 Machinist | -9/Storage | Hacked R-10 Processor | -7/Data Miner | Free S-27 Virus | -7/Data Miner | Free H-55 Commando | -7/Data Miner | Free L-41 Fighter | -7/Data Miner | Free B-48 Gladiator | -7/Data Miner | Free A-15 Conveyor | -7/Data Miner | Free Y-54 Guardian | -7/Data Miner | Free Fabricated ------------ Mic. Antimatter Reactor | x2 | -6/Factory | Preloaded Repaired ---------- Lgt. Armor Plating | 24% | -9/Materials Studied --------- None Alien Tech Used ----------------- Core Expander Core Regenerator Integrated Dissipator Achievements -------------- Force of Scrap Stay Cool Under Fire Stronghold Challenges ------------ None Game ------ Seed SchematicExplosiveMatrix Manual? 0 Play Time 05:12:54 Cumulative 301.0 hours Start 2026.04.03 @ 16:19:42 End 2026.04.03 @ 23:29:29 Sessions 1 Manual Loads 0 Difficulty Rogue Special Mode None Game No. 211 Rogue 211 Adventurer 0 Explorer 0 Win Type 8 Total 10 Types 5/1/1/2/0/0/0/0/1/0 Lore% 80 Gallery% 69 Achievement% 61 Wizard Run 0 Options --------- Layout 0 ASCII 0 Keyboard 1 Movement Numpad Keybinds 0 Fullscreen 1 Font 24/Terminus Map View 76x50 Zoom Use 0% Tactical HUD 1 Map Filters NONE Filters NONE Steam 1 RUN: 074ea279-86a1-469f-88a5-d04c20d59357